Cogmind - Beta 16.1 @@@ ROGUE MODE // 2026.02.26 @ 01:01:43 Player: cptwinky Result: Destroyed by Executioner with Helical Railgun Performance ------------- Evolutions (8) 4000 Regions Visited (30) 6000 Robots Destroyed (256) 1280 Value Destroyed (11265) 11265 Prototype IDs (157) 3140 Alien Tech Used (3) 600 Bonus (9033) 9033 TOTAL SCORE: 35318 Bonus ------- High Alert Combat Kills 5186 Follower Combat Kills 949 Hunted by Unchained 500 Registered with UFD 300 Met Optimus in HQ 500 Met Data Miner 300 Met Zhirov 300 MAIN.C Attacked Warlord 500 Hacked Protovariant 500 Scanned by Researcher 500 Met Optimus at Protoforge 1000 Friendly Fire -1502 Cogmind --------- Core Integrity 0/1450 Matter 300/300 Energy 588/600 System Corruption 14% Temperature Cool (0) Movement Rolling (80) Ox1 Location -2/Protoforge Parts ------- > --- POWER (2) -------- Improved Quantum Reactor Improved Quantum Reactor > --- PROPULSION (8) --- Overtuned Huge Scrapsphere Overtuned Huge Scrapsphere (fused) Overtuned Huge Scrapsphere Overtuned Huge Scrapsphere > --- UTILITY (11) ----- 0bPrime Scrap Suit Medium Storage Unit Experimental Targeting Computer Advanced Target Analyzer Experimental Core Analyzer Makeshift Heavy Armor Plating > --- WEAPON (2) ------- Overtuned Nova Cannon Overtuned Nova Cannon > --- INVENTORY (10) --- Impulse Thruster Array Experimental Energy Well (600) Centrium Light Armor Plating Centrium Light Armor Plating Overtuned Beamcaster Null Cannon Sigix Broadsword Plasma Lance Peak State ------------ > --- POWER ------------ Hybrid Graviton Reactor > --- PROPULSION ------- Cooled Field Propulsion Drive Cooled Field Propulsion Drive Improved Diametric Drive Impulse Thruster Array Impulse Thruster Array Experimental Surge Thruster > --- UTILITY ---------- Experimental Cooling System Medium Storage Unit Experimental Optical Array Experimental Sensor Array Advanced Signal Interpreter Experimental Targeting Computer Experimental Target Analyzer Experimental Armor Integrity Analyzer Experimental Utility Shielding Heavy Regenerative Plating > --- WEAPON ----------- Sigix Broadsword > --- INVENTORY -------- Improved Quantum Reactor Overtuned Huge Scrapsphere Advanced Energy Well Advanced Reaction Control System AEGIS Remote Shield Vortex Driver Null Cannon Concept XC Strikerail Fusion Bomb Launcher [Rating: 192] Favorites ----------- Power Cooled Ion Engine Engine Cooled Ion Engine Power Core Light Nuclear Core Reactor Improved Quantum Reactor Propulsion Light Treads Treads Light Treads Leg Heavy Shield Leg Wheel Overtuned Huge Scrapsphere Flight Unit Improved Flight Unit Utility Hacking Suite Device Experimental Sensor Array Storage Medium Storage Unit Processor Advanced Signal Interpreter Hackware Hacking Suite Protection Improved Medium Armor Plating Weapon Assault Cannon Energy Gun Medium Laser Energy Cannon Overtuned Nova Cannon Ballistic Gun Heavy Assault Rifle Ballistic Cannon Assault Cannon Launcher Grenade Launcher Special Weapon RU-N14's Throwing Claymores v3 Impact Weapon Great Maul Slashing Weapon Makeshift Sword Special Melee Weapon Advanced Datajack Build | -11 -10 -10 -9 -9 -8 -8 -8 -8 -6 -6 -6 -6 -6 -6 -5 -5 -5 -5 -5 -4 -4 -4 -4 -4 -3 -3 -3 -2 -2 -2 ------- Run | Yrd Mat Min Mat Min Mat Sto Rec Scr Fac Was Fac Low Low Dat Pro Fac Upp Upp Zhi Pro Fac Upp Upp War Pro Res Tes Res Qua Frg Slots Evolved 16 | . . . 2 . 2 . . . 4 . . . . . . 2 . . . . 2 . . . . 2 . 2 . . Power 1 | . . . . . . . . . . . . . . . . . . . . . 1 . . . . . . . . . Propulsion 6 | . . . 1 . . . . . 2 . . . . . . 1 . . . . . . . . . 1 . 1 . . Utility 9 | . . . 1 . 2 . . . 2 . . . . . . 1 . . . . 1 . . . . 1 . 1 . . Weapon . | . . . . . . . . . . . . . . . . . . . . . . . . . . . . . . . Parts Attached 238 | 6 3 8 23 2 15 10 2 4 11 . 6 2 4 1 . 7 3 . 3 1 10 4 1 13 1 5 16 2 2 73 Power 34 | 1 . 1 3 . 1 1 . 2 . . . . 1 . . 1 . . 1 1 2 . . 1 . 2 2 . . 14 Engine 11 | 1 . 1 3 . 1 1 . 1 . . . . . . . . . . . 1 1 . . . . . . . . 1 Core 5 | . . . . . . . . 1 . . . . 1 . . 1 . . . . . . . . . . 2 . . . Reactor 18 | . . . . . . . . . . . . . . . . . . . 1 . 1 . . 1 . 2 . . . 13 Propulsion 46 | 2 . 1 9 . 3 3 . . 5 . 1 1 . 1 . . . . 1 . 1 . . 2 . 2 3 2 . 9 Treads 18 | 2 . 1 9 . 3 2 . . . . . . . . . . . . 1 . . . . . . . . . . . Leg 3 | . . . . . . . . . . . . . . . . . . . . . . . . 1 . . . . . 2 Wheel 4 | . . . . . . . . . . . . . . . . . . . . . . . . . . . . . . 4 Hover . | . . . . . . . . . . . . . . . . . . . . . . . . . . . . . . . Flight 21 | . . . . . . 1 . . 5 . 1 1 . 1 . . . . . . 1 . . 1 . 2 3 2 . 3 Utility 101 | 1 2 1 6 . 7 3 1 1 4 . 4 1 2 . . 6 2 . 1 . 5 1 1 5 . 1 8 . 1 37 Device 33 | . . . 2 . 1 . . . 1 . 1 1 1 . . 4 1 . . . 3 . 1 3 . 1 3 . . 10 Storage 5 | 1 1 . 1 . . . . . 1 . . . . . . . . . . . . . . . . . . . . 1 Processor 21 | . . . . . 1 2 . . . . 1 . . . . . . . . . 2 1 . . . . . . 1 13 Hackware 12 | . . . . . 3 . 1 1 . . 1 . 1 . . 2 . . . . . . . 2 . . . . . 1 Protection 30 | . 1 1 3 . 2 1 . . 2 . 1 . . . . . 1 . 1 . . . . . . . 5 . . 12 Artifact . | . . . . . . . . . . . . . . . . . . . . . . . . . . . . . . . Weapon 57 | 2 1 5 5 2 4 3 1 1 2 . 1 . 1 . . . 1 . . . 2 3 . 5 1 . 3 . 1 13 Energy Gun 11 | 2 . 2 2 . . . 1 . . . . . . . . . . . . . . 1 . 2 . . . . . 1 Energy Cannon 8 | . . . . . . . . . 1 . . . . . . . . . . . 1 1 . 1 . . 1 . . 3 Ballistic Gun 12 | . . 1 1 1 1 . . . . . . . . . . . . . . . . . . . . . . . . 8 Ballistic Cannon 5 | . . . . . 2 1 . . . . . . . . . . 1 . . . . . . . . . 1 . . . Launcher 6 | . . 1 1 1 1 . . . . . 1 . . . . . . . . . . . . . . . . . . 1 Special Weapon 5 | . 1 . . . . 1 . . . . . . . . . . . . . . . . . 2 1 . . . . . Impact Weapon 2 | . . . 1 . . . . 1 . . . . . . . . . . . . . . . . . . . . . . Slashing Weapon 6 | . . 1 . . . . . . 1 . . . 1 . . . . . . . . 1 . . . . 1 . 1 . Piercing Weapon . | . . . . . . . . . . . . . . . . . . . . . . . . . . . . . . . Special Melee Weapon 2 | . . . . . . 1 . . . . . . . . . . . . . . 1 . . . . . . . . . Unidentified Prototypes 38 | . . . 2 . . 3 1 . 1 . . . . . . . . . 3 . . . . 10 . . 10 . 1 7 Parts Lost 38 | . . . 1 . . 1 . . . . . . 2 . 1 3 . . . . 1 . . . . . . . . 29 Power 9 | . . . . . . . . . . . . . 1 . . 1 . . . . 1 . . . . . . . . 6 Propulsion 4 | . . . . . . . . . . . . . . . . 1 . . . . . . . . . . . . . 3 Utility 15 | . . . 1 . . 1 . . . . . . 1 . . 1 . . . . . . . . . . . . . 11 Weapon 10 | . . . . . . . . . . . . . . . 1 . . . . . . . . . . . . . . 9 Highest Loss Streak 12 | . . . 1 . . 1 . . . . . . 1 . 1 3 . . . . 1 . . . . . . . . 12 To Critical Strikes 2 | . . . . . . . . . . . . . . . . . . . . . . . . . . . . . . 2 Average Backups 10 | 3 8 9 9 13 14 14 15 14 8 9 8 9 8 9 9 9 9 10 9 10 9 10 10 10 9 9 9 9 9 7 Power . | . 1 . . . . . . . 1 1 1 1 . . . . 1 1 1 . . . . . . . . . . . Propulsion 1 | 1 2 2 2 3 1 2 6 6 1 2 2 1 1 1 2 . . . . . . 1 1 1 1 . . . . . Utility 4 | . 1 3 3 4 6 6 5 4 2 1 1 2 3 4 4 5 5 5 5 6 5 6 6 4 4 5 5 5 4 2 Weapon 3 | 1 2 3 4 6 5 4 3 2 2 3 3 3 3 3 2 2 2 2 2 2 2 2 2 3 3 3 2 2 3 3 Tool/Special . | . . . . . . . . . . . . . . . . . . . . . . . . . . . . . . . Unused Backups 44 | . . 3 5 . 7 . 1 1 3 2 1 . . . . 4 . 1 1 . . . . . . 2 5 . 1 7 Power 3 | . . . . . . . . . . 1 . . . . . . . . . . . . . . . . 1 . . 1 Propulsion 7 | . . 1 2 . 1 . . . 1 . . . . . . . . . . . . . . . . . 1 . . 1 Utility 19 | . . 1 . . 3 . 1 1 2 1 . . . . . 4 . 1 . . . . . . . 2 1 . 1 1 Weapon 13 | . . 1 3 . 3 . . . . . 1 . . . . . . . . . . . . . . . 2 . . 3 Tool/Special 2 | . . . . . . . . . . . . . . . . . . . 1 . . . . . . . . . . 1 Average Slot Usage (%) 87 | . 89 100 97 100 91 97 90 81 92 93 93 93 92 91 86 87 87 88 88 94 86 88 89 88 83 84 81 81 78 69 Engine 5 | . 14 14 10 11 9 8 9 8 . . . . . . . . . . . . 4 5 5 4 . . . . . . Core 1 | . . . . . . . . . 6 6 6 6 5 6 6 5 5 5 5 4 . . . . . . 2 4 4 . Reactor 1 | . . . . . . . . . . . . . . . . . . . . . 2 5 5 5 5 4 1 . . 5 Treads 13 | . 28 28 33 33 27 26 27 27 . . . . . . . . . . . . . . . . . . . . . . Wheel 1 | . . . . . . . . . . . . . . . . . . . . . . . . . . . . . . 12 Flight 11 | . . . . . . . . . 32 33 33 33 33 31 26 28 29 29 28 29 21 21 21 21 21 22 22 26 26 5 Device 6 | . . . 8 11 12 . . . 5 6 6 4 6 4 10 11 12 11 7 10 9 9 9 10 9 8 9 7 11 9 Storage 7 | . 14 14 11 11 9 9 9 9 6 6 6 6 6 6 6 5 5 5 5 5 5 5 5 5 5 4 4 4 4 4 Processor 7 | . . . . . . 8 18 15 6 6 6 6 6 6 6 5 5 5 5 5 10 10 10 10 10 9 9 8 12 12 Hackware 10 | . . . . . 5 15 11 20 20 20 20 20 18 20 20 19 17 17 17 17 15 15 15 15 15 14 14 13 6 1 Protection 7 | . 3 14 11 11 9 10 6 . 6 6 5 7 6 7 2 2 4 5 8 5 5 5 5 5 5 8 5 8 7 7 Energy Gun 2 | . 27 21 11 9 . . . . . . . 3 . . . . . . . . . . . . . . . . . . Ballistic Gun 1 | . . 1 10 11 2 . . . . . . . . . . . . . . . . . . . . . . . . 2 Ballistic Cannon 3 | . . . . . 15 17 8 . . . . . . . . . . . . . . . . . . . . . . . Slashing Weapon 1 | . . . . . . . . . 1 6 5 2 5 2 2 3 3 . 2 3 4 4 4 4 3 1 2 4 4 1 Peak Build Rating 192 | 6 8 11 19 18 40 36 37 29 54 55 62 64 63 67 69 85 87 85 85 89 112 115 112 135 126 143 157 164 177 192 Average Rating 72 | 5 6 9 15 17 33 33 32 28 48 54 57 59 60 61 67 78 83 84 81 88 106 110 110 117 122 136 142 161 172 163 On Entrance 71 | . 6 8 11 18 18 32 35 29 29 49 55 55 56 61 63 68 85 82 83 85 88 108 108 111 124 120 141 146 164 175 Avg Prop Armor Cover (%) 9 | . . . . . . . . . 5 . 5 . . . . . . . 17 . 4 . . . . 3 . . . 11 Naked Turns . | . . . . . . . . . . . . . . . . . . . . . . . . . . . . . . . Heaviest Build 105 | 12 18 24 42 42 54 52 45 29 24 21 29 29 29 30 31 42 35 35 28 36 40 40 43 60 45 47 59 62 54 105 Greatest Support 80 | 40 40 40 60 60 62 60 60 60 26 26 27 28 28 32 32 38 38 38 38 38 44 44 44 46 46 56 56 64 64 80 Greatest Overweight (x) 2 | . . . . . . 1 . . 1 . 1 1 1 . . 1 . . 1 . 1 . . 1 . 1 1 . . 2 Average Overweight (x) . | . . . . . . . . . . . . . . . . . . . . . . . . . . . . . . . Largest Inventory Capacity 15 | 8 10 10 15 15 15 15 15 15 15 10 10 10 10 10 10 10 10 10 10 10 10 10 10 10 10 10 10 10 10 10 Average Capacity 11 | 7 9 10 11 15 15 15 15 15 10 10 10 10 10 10 10 10 10 10 10 10 10 10 10 10 10 10 10 10 10 10 Most Carried 15 | 6 10 10 15 15 15 15 15 15 14 10 10 10 10 10 10 10 10 10 10 10 10 10 10 10 10 10 10 10 10 10 Average Carried 11 | 3 8 9 10 14 14 14 14 14 8 9 9 9 9 9 9 9 9 9 9 9 9 10 10 9 9 9 9 9 9 9 Final Capacity 15 | 8 10 10 15 15 15 15 15 15 10 10 10 10 10 10 10 10 10 10 10 10 10 10 10 10 10 10 10 10 10 10 Final Carried 15 | 6 10 10 15 15 15 15 15 15 10 10 10 10 10 10 10 10 10 10 10 10 10 10 10 10 10 10 10 10 10 10 Scrap Suit Usage (%) 1 | . . . . . . . . . . . . . . . . . . . . . . . . . . . . . . 5 Parts Cannibalized 25 | . . . . . . . . . . . . . . . . . . . . . . . . . . . . . . 25 Class Distribution -------------------- 19% | Mutant 19% | Hacker-Sprinter 15% | Hacker-Mutant 13% | Scavenger-Mutant 13% | Hacker-Scout 11% | Scavenger-Scrapper 3% | Hacker-Ninja Dominant Class ---------------- Mutant | -10/Materials Mutant | -10/Mines Scavenger-Mutant | -9/Materials Scavenger-Mutant | -9/Mines Scavenger-Mutant | -8/Materials Mutant | -8/Storage Mutant | -8/Recycling Hacker-Mutant | -8/Scraptown Hacker-Sprinter | -6/Factory Hacker-Sprinter | -6/Waste Hacker-Sprinter | -6/Factory Hacker-Sprinter | -6/Lower Caves Hacker-Sprinter | -6/Lower Caves Hacker-Sprinter | -6/Data Miner Hacker-Sprinter | -5/Proximity Caves Hacker-Sprinter | -5/Factory Hacker-Sprinter | -5/Upper Caves Hacker-Sprinter | -5/Upper Caves Hacker-Sprinter | -5/Zhirov Hacker-Sprinter | -4/Proximity Caves Hacker-Scout | -4/Factory Hacker-Scout | -4/Upper Caves Hacker-Scout | -4/Upper Caves Hacker-Scout | -4/Warlord Hacker-Scout | -3/Proximity Caves Hacker-Ninja | -3/Research Hacker-Ninja | -3/Testing Hacker-Scout | -2/Research Hacker-Scout | -2/Quarantine Scavenger-Scrapper | -2/Protoforge Resources | -11 -10 -10 -9 -9 -8 -8 -8 -8 -6 -6 -6 -6 -6 -6 -5 -5 -5 -5 -5 -4 -4 -4 -4 -4 -3 -3 -3 -2 -2 -2 ----------- Run | Yrd Mat Min Mat Min Mat Sto Rec Scr Fac Was Fac Low Low Dat Pro Fac Upp Upp Zhi Pro Fac Upp Upp War Pro Res Tes Res Qua Frg Matter Collected 8848 | 219 47 297 509 66 547 661 102 40 710 . 89 402 215 . 135 81 296 20 90 100 205 110 170 . 207 . 471 . 290 2769 Remotely . | . . . . . . . . . . . . . . . . . . . . . . . . . . . . . . . Salvage Created 12204 | 25 85 251 1267 67 638 424 205 . 582 . 160 492 219 . 180 143 234 . 177 23 477 62 141 . 42 60 360 . 421 5469 Parts 512 | 6 8 20 62 11 29 20 6 . 12 . 12 9 8 . 8 7 4 . 3 3 15 1 4 . 8 8 8 . 14 226 Haulers Intercepted 14 | . 1 . 5 . 2 3 . . 2 . . . . . . . . . . . . . . . . . . . . 1 Recyclers Shooed 12 | . . 2 4 . 1 . . . . . . . . . . . . . . . 3 . . . . . 1 . 1 . Parts Field Recycled 1 | . . . . . . . . . . . . . . . . 1 . . . . . . . . . . . . . . Retrieved Matter 9 | . . . . . . . . . . . . . . . . 9 . . . . . . . . . . . . . . Parts Self-Destructed 40 | . . . . . . . . . . . . 5 3 . 8 . 7 . 2 3 . . 9 . 3 . . . . . Prevented 6 | . . . . . . . . . . . . 3 . . . . 2 . . . . . 1 . . . . . . . Parts Restored . | . . . . . . . . . . . . . . . . . . . . . . . . . . . . . . . Kills | -11 -10 -10 -9 -9 -8 -8 -8 -8 -6 -6 -6 -6 -6 -6 -5 -5 -5 -5 -5 -4 -4 -4 -4 -4 -3 -3 -3 -2 -2 -2 ------- Run | Yrd Mat Min Mat Min Mat Sto Rec Scr Fac Was Fac Low Low Dat Pro Fac Upp Upp Zhi Pro Fac Upp Upp War Pro Res Tes Res Qua Frg Combat Hostiles Destroyed 186 | . 3 12 25 7 15 9 3 . 1 . . 5 7 . 2 . 1 . . . 1 . . . 7 1 . . 2 85 Melee 9 | . . . . . . . . . . . . . . . . . . . . . 1 . . . . . . . 2 6 Guns 75 | . 3 3 22 4 . . . . 1 . . 2 . . 1 . 1 . . . . . . . . . . . . 38 Cannons 45 | . . . . . 10 5 3 . . . . . . . . . . . . . . . . . 1 1 . . . 25 AOE 49 | . . 9 2 3 5 4 . . . . . 2 7 . . . . . . . . . . . 6 . . . . 11 Classes Destroyed 26 | 1 2 3 3 . 3 . . . 2 . . 1 . . . 1 1 . . . . . . . 1 . 1 . . 7 Worker 9 | . . 1 . 1 . 1 . . . . 2 . . . . . . . . . 4 . . . . . . . . . Builder 6 | . . . 1 . 1 . . . 2 . . . . . . . . . . . . . . . . . . . . 2 Tunneler 3 | 2 . . . . . . . . . . . . . . . 1 . . . . . . . . . . . . . . Hauler 14 | . 1 . 5 . 2 3 . . 2 . . . . . . . . . . . . . . . . . . . . 1 Recycler 13 | . . . . . 2 1 1 . 2 . 1 . . . . . . . . . 2 . . . . . 2 . 2 . Minesweeper 3 | . . . . . . . . . . . . . . . . . 1 . . 1 . . 1 . . . . . . . Mechanic 11 | . . . . . . . . . . . . . . . . 1 . . . . 1 . . . . . . . . 9 Operator 3 | . . . 1 . 2 . . . . . . . . . . . . . . . . . . . . . . . . . Drone 9 | . . . . . . . . . . . . . . . . . . . . . . . . . 2 . . . . 7 Watcher 8 | . . . . . . . . . 2 . . . . . . 2 . . . . 1 . . . . . . . . 3 Swarmer 50 | . 3 3 5 7 4 4 . . . . . . 7 . . . . . . . 1 . . . 4 . . . . 12 Saboteur 2 | . . . . . . . . . . . . . . . . . . . . . . . . . . . . . . 2 Grunt 38 | . . 3 13 . 7 . . . . . . 3 . . . . 1 . . . . . . . 1 . . . 2 8 Brawler 9 | . . . . . 1 . . . . . . 1 . . . . . . . . . . . . . . . . . 7 Duelist 4 | . . . . . . . . . . . . . . . . . . . . . . . . . . . . . . 4 Protector 6 | . . . . . . . . . . . . . . . . . . . . . . . . . . . . . . 6 Researcher 1 | . . . . . . . . . . . . . . . . . . . . . . . . . . . 1 . . . Sentry 19 | . . . 7 . 3 5 3 . . . . . 1 . . . . . . . . . . . . . . . . . Hunter 7 | . . . . . 1 . . . . . . 1 . . . . . . . . . . . . . . . . . 5 Programmer 11 | . . . . . . . . . 1 . . . . . 2 . . . . . . . . . . 1 . . . 7 Behemoth 1 | . . . . . . . . . . . . . . . . . . . . . . . . . . . . . . 1 Hotshot 3 | . . . . . . . . . . . . . . . . . . . . . . . . . . . . . . 3 Investigator 1 | . . . . . . . . . . . . . . . . . . . . . . . . . . . 1 . . . Striker 8 | . . . . . . . . . . . . . . . . . . . . . . . . . . . . . . 8 Executioner 15 | . . . . . . . . . . . . . . . . . . . . . . . . . . . . . . 15 Scrapoid 1 | . . . . . . . . . . . . . . . . . . . . . . . . . . . . . . 1 Packrat 4 | . . . . . . . . . . . . 3 . . . . 1 . . . . . . . . . . . . . Tinkerer 1 | . . . . . . . . . . . . 1 . . . . . . . . . . . . . . . . . . Assembled 6 | . . 6 . . . . . . . . . . . . . . . . . . . . . . . . . . . . Thug 1 | . . 1 . . . . . . . . . . . . . . . . . . . . . . . . . . . . Commander 1 | . . . . . . . . . . . . . 1 . . . . . . . . . . . . . . . . . Best Kill Streak 16 | 1 3 3 4 4 11 4 1 . 2 . 2 3 4 . 2 1 1 . . 1 6 . 1 . 5 1 1 . 2 16 Combat Bots Only 9 | . 3 3 3 3 8 4 1 . 1 . . 3 4 . 2 . 1 . . . 1 . . . 5 1 . . 1 9 Max Kills in Single Turn 5 | 1 1 3 2 3 3 3 1 . 1 . 1 1 5 . 1 1 1 . . 1 1 . 1 . 4 1 1 . 1 3 Gunslinging 1 | . . . 1 . . . . . . . . . . . . . . . . . . . . . . . . . . 1 Exploded 4 | . . 3 2 3 2 3 . . . . . 1 4 . . . . . . . . . . . 4 . . . . 3 Melee 1 | . . . . . . . . . . . . . . . . . . . . . 1 . . . . . . . 1 1 Uniques/NPCs Destroyed . | . . . . . . . . . . . . . . . . . . . . . . . . . . . . . . . Combat | -11 -10 -10 -9 -9 -8 -8 -8 -8 -6 -6 -6 -6 -6 -6 -5 -5 -5 -5 -5 -4 -4 -4 -4 -4 -3 -3 -3 -2 -2 -2 -------- Run | Yrd Mat Min Mat Min Mat Sto Rec Scr Fac Was Fac Low Low Dat Pro Fac Upp Upp Zhi Pro Fac Upp Upp War Pro Res Tes Res Qua Frg Hostile Shots Fired 1144 | . 10 17 104 13 65 41 4 . 16 . 2 7 5 . 24 17 . . . 7 8 . 5 . 2 15 66 26 32 658 Missed 405 | . 4 5 32 3 20 10 2 . 9 . . 2 . . 6 12 . . . 4 5 . 3 . 2 10 37 15 18 206 Hits 739 | . 6 12 72 10 45 31 2 . 7 . 2 5 5 . 18 5 . . . 3 3 . 2 . . 5 29 11 14 452 Melee 7 | . . . . . . . . . . . . . . . . . . . . . . . . . . . . . . 7 Projectile 732 | . 6 12 72 10 45 31 2 . 7 . 2 5 5 . 18 5 . . . 3 3 . 2 . . 5 29 11 14 445 AOE 3 | . . . . . . . . . . . . . . . . . . . . . . . . . . . . . . 3 Critical Strikes 44 | . . . 1 . . 1 1 . . . . . . . 3 . . . . . . . . . . 1 1 1 1 34 Actively Blocked 3 | . . . . . . . . . . . . . . . . . . . . . . . . . . . 1 . 1 1 Part Disruptions 1 | . . . . . . . . . . . . . . . . . . . . . . . . . . . . . . 1 Damage Taken 17496 | . 52 178 876 100 657 510 41 . 108 . 40 82 200 . 371 437 . . . 23 175 . 34 . . 147 496 226 309 12434 Core 2156 | . 17 39 148 27 81 49 11 . 19 . . 20 . . 77 111 . . . . 69 . 21 . . . 23 23 . 1421 Absorbed by Shields 1265 | . . . . . . . . . . . . . . . . . . . . . . . . . . . . 21 . 1244 Redirected to Shielding 490 | . . . . . . . . . . . 13 13 . . 14 60 . . . . . . . . . 20 52 18 40 260 Ignored by Resistances 28 | . . . 28 . . . . . . . . . . . . . . . . . . . . . . . . . . . Regen/Repaired (Parts) 3116 | . . . 65 . 11 81 . . 52 . . . . . . 123 . . . . 36 . . . . . 364 138 399 1847 Core Remaining (%) 83 | 100 . 77 . 56 . . . 74 . . . . . . 86 . . . . 88 . . . . 92 . 98 . . . Volleys Fired 657 | 2 7 17 94 9 48 23 8 . 4 . 2 20 6 . 20 12 8 4 . 5 5 . 2 . 11 13 21 . . 316 Largest 2 | 2 2 2 2 2 2 2 2 . 1 . 1 1 1 . 1 1 1 1 . 1 1 . 1 . 1 1 1 . . 2 Hottest 300 | 100 100 100 79 79 74 74 74 . 120 . 120 120 43 . 120 120 120 90 . 90 98 . 98 . 98 98 130 . . 300 Shots Fired 1055 | 4 13 21 187 17 82 35 16 . 4 . 2 20 6 . 20 12 8 4 . 5 5 . 2 . 11 13 21 . . 547 Gun 634 | 4 12 8 186 16 15 . . . 3 . 1 17 . . 7 1 2 . . . . . . . . . . . . 362 Cannon 368 | . . . . . 62 31 16 . 1 . 1 . . . 13 11 6 4 . 5 5 . 2 . 5 12 21 . . 173 Launcher 45 | . . 13 1 1 5 4 . . . . . 3 6 . . . . . . . . . . . . . . . . 12 Special 8 | . 1 . . . . . . . . . . . . . . . . . . . . . . . 6 1 . . . . Kinetic 520 | . . 1 93 8 77 31 16 . . . . . . . . . . . . . . . . . . . . . . 294 Thermal 453 | 4 13 7 93 8 . . . . 4 . 2 17 . . 20 12 8 4 . 5 5 . 2 . 5 12 20 . . 212 Explosive 52 | . . 13 1 1 5 4 . . . . . 3 6 . . . . . . . . . . . 6 1 . . . 12 Electromagnetic . | . . . . . . . . . . . . . . . . . . . . . . . . . . . . . . . Entropic 30 | . . . . . . . . . . . . . . . . . . . . . . . . . . . 1 . . 29 Robot Hit Streak 30 | 3 7 12 30 4 12 12 16 . 11 . . 8 6 . 7 9 14 . . . . . . . 1 2 6 . . 26 Robot Miss Streak 4 | . 2 1 3 1 4 1 1 . 1 . . 2 . . 4 . 1 . . . . . . . 2 . . . . 4 Penetration Max 2 | . . . . . . . . . . . . . . . 1 . . . . . . . . . . . . . . 2 Secondary Targets 12 | . 1 . 3 . . . . . . . . . . . . . . . . . . . . . . . . . . 8 Max Gunslinging Chain 1 | . 1 . 1 . . . . . . . . . . . . . . . . . . . . . . . . . . 1 Shots Hit Robots 775 | 3 9 8 133 12 52 20 14 1 20 . 4 17 9 1 8 10 8 . 9 3 26 1 6 1 2 6 19 1 9 363 Core Hits 421 | 2 5 24 43 6 26 15 5 . 6 . 2 18 10 . 6 4 6 . 1 2 6 1 2 . 9 1 5 . 3 213 Critical Kills 14 | . . . . . . . . . . . . . . . . . . . . . . . . . . . . . . 14 Critical Parts Destroyed 28 | . . . 1 . . . . . 2 . . . . . . . . . . . . . . . . . . . . 25 Critical Strikes 97 | . . 1 9 . 3 3 1 . 3 . . . . . . . . . . . 1 . . . . 1 1 . 2 72 Burn 19 | . . 1 8 . . . . . . . . . . . . . . . . . . . . . . . . . . 10 Meltdown 5 | . . . . . . . . . . . . . . . . . . . . . . . . . . . . . . 5 Destroy 36 | . . . 1 . . . . . . . . . . . . . . . . . . . . . . . . . . 35 Blast 7 | . . . . . 3 3 1 . . . . . . . . . . . . . . . . . . . . . . . Smash 2 | . . . . . . . . . 2 . . . . . . . . . . . . . . . . . . . . . Sever 6 | . . . . . . . . . 1 . . . . . . . . . . . 1 . . . . 1 . . 2 1 Sunder 22 | . . . . . . . . . . . . . . . . . . . . . . . . . . . 1 . . 21 Melee Attacks 357 | . . 1 2 . . 1 . 1 48 . 22 13 11 1 2 35 10 . 9 6 52 3 8 1 12 14 33 11 25 36 Impact 32 | . . . 2 . . . . . 30 . . . . . . . . . . . . . . . . . . . . . Slashing 292 | . . 1 . . . . . . 7 . 21 13 11 . 2 33 10 . 6 6 50 3 8 . 12 13 24 11 25 36 Piercing . | . . . . . . . . . . . . . . . . . . . . . . . . . . . . . . . Sneak Attacks 70 | . . . . . . 1 . 1 9 . 4 3 8 1 . 2 3 . 3 1 10 . 2 1 . . 5 1 3 12 Combat Hostiles 1 | . . . . . . . . . . . . . . . . . . . . . . . 1 . . . . . . . Follow-up Attacks . | . . . . . . . . . . . . . . . . . . . . . . . . . . . . . . . Damage Inflicted 37643 | 37 120 575 2235 388 1615 842 373 . 989 . 244 1173 1167 . 355 464 527 . 477 157 1384 54 402 . 1127 232 603 129 892 21082 Guns 13613 | 37 120 80 2127 202 173 . . . 153 . . 374 . . 280 22 84 . . . . . . . . . . . . 9961 Cannons 7990 | . . . . . 992 508 353 . . . . . . . . . . . . . . . . . . . 176 . . 5961 Explosions 6433 | . . 478 61 172 412 300 . . . . . 449 583 . . . . . . . . . . . 1017 . . . . 2961 Melee 9277 | . . . . . . . . . 836 . 244 350 584 . 75 442 443 . 477 157 1384 54 402 . . 182 427 129 892 2199 Ramming 170 | . . 17 47 14 38 34 20 . . . . . . . . . . . . . . . . . . . . . . . Kinetic 12041 | . . 17 992 95 1165 508 353 . . . . . . . . . . . . . . . . . . . . . . 8911 Thermal 6241 | 37 120 63 1135 107 . . . . 153 . . 374 . . 280 22 84 . . . . . . . . . 104 . . 3762 Explosive 6433 | . . 478 61 172 412 300 . . . . . 449 583 . . . . . . . . . . . 1017 . . . . 2961 Electromagnetic . | . . . . . . . . . . . . . . . . . . . . . . . . . . . . . . . Impact 597 | . . . . . . . . . 597 . . . . . . . . . . . . . . . . . . . . . Slashing 8840 | . . . . . . . . . 239 . 244 350 584 . 75 442 443 . 477 157 1384 54 402 . 110 232 427 129 892 2199 Piercing . | . . . . . . . . . . . . . . . . . . . . . . . . . . . . . . . Entropic 3321 | . . . . . . . . . . . . . . . . . . . . . . . . . . . 72 . . 3249 Highest Corruption 14 | . . . 2 2 . 1 1 . . 8 8 1 5 5 9 3 2 . . . . . . . . . 1 . . 14 Average Corruption 4 | . . . 2 2 . 1 1 . . 8 4 1 3 5 8 2 1 . . . . . . . . . 1 . . 9 Corruption Purged 10 | . . . . . . . . . . . 7 . . . . 1 2 . . . . . . . . . . . . . Corruption Blocked . | . . . . . . . . . . . . . . . . . . . . . . . . . . . . . . . Effects 159 | . . . 1 15 . 4 14 . . 1 7 6 3 1 8 13 1 . . . . . . . . . 2 . . 83 Message Errors 39 | . . . . 5 . 1 6 . . 1 3 . . . 1 3 . . . . . . . . . . . . . 19 Matter Fused 24 | . . . . 2 . 1 1 . . . . 3 . . 1 3 . . . . . . . . . . 1 . . 12 Heat Flow Errors 22 | . . . . 3 . . 1 . . . . 2 1 1 2 1 . . . . . . . . . . . . . 11 Energy Discharges 19 | . . . . 2 . . 2 . . . 1 . 1 . 1 2 1 . . . . . . . . . . . . 9 Parts Rejected 3 | . . . . . . . . . . . . . . . 1 . . . . . . . . . . . . . . 2 Parts Fused 1 | . . . . . . . . . . . . . . . . . . . . . . . . . . . . . . 1 Data Loss (minor) 22 | . . . 1 1 . 2 3 . . . 2 1 1 . . 3 . . . . . . . . . . 1 . . 7 Data Loss (major) 8 | . . . . 1 . . . . . . 1 . . . . . . . . . . . . . . . . . . 6 Misfires 1 | . . . . . . . . . . . . . . . 1 . . . . . . . . . . . . . . . Alerts 5 | . . . . 1 . . 1 . . . . . . . . 1 . . . . . . . . . . . . . 2 Misdirections 5 | . . . . . . . . . . . . . . . . . . . . . . . . . . . . . . 5 Weapon Failures 10 | . . . . . . . . . . . . . . . 1 . . . . . . . . . . . . . . 9 Overload Shots . | . . . . . . . . . . . . . . . . . . . . . . . . . . . . . . . Overflow Damage 3224 | . . 9 . 21 46 35 3 . 245 . 52 228 112 . 33 64 104 . 155 38 323 . 141 . 20 . 104 74 217 1200 Projectiles 342 | . . . . . 12 . 3 . . . . . . . . . . . . . . . . . 20 . . . . 307 Explosions 202 | . . 9 . 21 34 35 . . . . . . 50 . . . . . . . . . . . . . . . . 53 Melee 2680 | . . . . . . . . . 245 . 52 228 62 . 33 64 104 . 155 38 323 . 141 . . . 104 74 217 840 Knockbacks 9 | . . . . . 4 1 2 . 2 . . . . . . . . . . . . . . . . . . . . . Impact 2 | . . . . . . . . . 2 . . . . . . . . . . . . . . . . . . . . . Kinetic 5 | . . . . . 2 1 2 . . . . . . . . . . . . . . . . . . . . . . . Secondary 2 | . . . . . 2 . . . . . . . . . . . . . . . . . . . . . . . . . Self-Inflicted Damage 277 | . . 26 . 27 30 48 . . . . . . 59 . . . . . . . . . . . . . . . . 87 Shots 9 | . . 2 . 1 1 1 . . . . . . 1 . . . . . . . . . . . . . . . . 3 Rammed 22 | . . 5 7 1 2 6 1 . . . . . . . . . . . . . . . . . . . . . . . Targets Rammed 26 | . . 5 7 2 3 7 2 . . . . . . . . . . . . . . . . . . . . . . . Kicked . | . . . . . . . . . . . . . . . . . . . . . . . . . . . . . . . Crushed 4 | . . . . 1 1 1 1 . . . . . . . . . . . . . . . . . . . . . . . Highest Temperature 519 | 39 156 42 99 209 6 34 135 . 222 . 74 252 103 124 320 178 88 38 . 42 136 1 136 10 190 519 241 74 32 453 Average Temperature 56 | 20 59 21 24 118 6 13 58 . 110 . 19 75 26 94 121 25 28 21 . 20 38 1 27 3 93 65 76 21 16 132 Received Heat Transfer 3705 | . . 21 291 . 225 117 33 . 36 . 18 9 . . . . . . . . . . . . . 401 30 13 72 2439 Effects 3 | . . . . . . . . . . . . . . . . . . . . . . . . . . 3 . . . . Damage (major) 3 | . . . . . . . . . . . . . . . . . . . . . . . . . . 3 . . . . Siege Activations . | . . . . . . . . . . . . . . . . . . . . . . . . . . . . . . . Martial Activations . | . . . . . . . . . . . . . . . . . . . . . . . . . . . . . . . Shielding Activations 2 | . . . . . . . . . . . . . . . . . . . . . . . . . . . . . . 2 Total Turns 34 | . . . . . . . . . . . . . . . . . . . . . . . . . . . . . . 34 Longest Duration 23 | . . . . . . . . . . . . . . . . . . . . . . . . . . . . . . 23 Robots Disrupted . | . . . . . . . . . . . . . . . . . . . . . . . . . . . . . . . Combat Hostiles . | . . . . . . . . . . . . . . . . . . . . . . . . . . . . . . . Robots Corrupted 3 | . . . . . . . . . 3 . . . . . . . . . . . . . . . . . . . . . Combat Hostiles . | . . . . . . . . . . . . . . . . . . . . . . . . . . . . . . . Parts Fried 7 | . . . . . . . . . 7 . . . . . . . . . . . . . . . . . . . . . Impact Corruptions 9 | . . . . . . . . . 9 . . . . . . . . . . . . . . . . . . . . . Robots Melted 8 | . . . 1 . . . . . . . . 1 . . 1 . . . . . . . . . . . . . . 5 Combat Hostiles 8 | . . . 1 . . . . . . . . 1 . . 1 . . . . . . . . . . . . . . 5 Parts Melted 31 | 1 . . 7 . . . . . 4 . . 1 . . 3 . 1 . . . . . . . . . . . . 14 Heat Transferred 10873 | 111 333 259 3219 222 . . . . 275 . . 825 . . 525 50 200 . . . . . . . . . 200 . . 4654 Parts Sabotaged . | . . . . . . . . . . . . . . . . . . . . . . . . . . . . . . . Parts Stolen . | . . . . . . . . . . . . . . . . . . . . . . . . . . . . . . . Parts Stripped . | . . . . . . . . . . . . . . . . . . . . . . . . . . . . . . . Power Chain Reactions . | . . . . . . . . . . . . . . . . . . . . . . . . . . . . . . . Alert | -11 -10 -10 -9 -9 -8 -8 -8 -8 -6 -6 -6 -6 -6 -6 -5 -5 -5 -5 -5 -4 -4 -4 -4 -4 -3 -3 -3 -2 -2 -2 ------- Run | Yrd Mat Min Mat Min Mat Sto Rec Scr Fac Was Fac Low Low Dat Pro Fac Upp Upp Zhi Pro Fac Upp Upp War Pro Res Tes Res Qua Frg Maximum Alert Level 5 | . . . 1 . 1 . . . . . . . . . . . . . . . . . . . . 1 . . . 5 Low Security (%) 78 | 100 100 100 72 100 83 100 100 . 100 100 100 . . . . 100 . . . . 100 . . . . 66 100 100 100 11 Level 1 7 | . . . 27 . 16 . . . . . . . . . . . . . . . . . . . . 33 . . . 13 Level 2 . | . . . . . . . . . . . . . . . . . . . . . . . . . . . . . . 4 Level 3 1 | . . . . . . . . . . . . . . . . . . . . . . . . . . . . . . 8 Level 4 1 | . . . . . . . . . . . . . . . . . . . . . . . . . . . . . . 7 Level 5 10 | . . . . . . . . . . . . . . . . . . . . . . . . . . . . . . 54 High Security . | . . . . . . . . . . . . . . . . . . . . . . . . . . . . . . . Max Security . | . . . . . . . . . . . . . . . . . . . . . . . . . . . . . . . Peak Influence 2703 | 5 75 101 281 194 284 185 20 . 155 35 46 . . . . 68 . . . . 182 . . . . 233 188 110 108 2703 Initial 183 | . . 11 . 52 18 34 . . . 35 17 . . . . 6 . . . . . . . . . 183 54 105 51 49 Average 331 | . 21 19 137 77 79 47 1 . 47 31 20 . . . . 9 . . . . 27 . . . . 182 34 98 71 1472 Influence Increases 8975 | 10 103 242 735 293 587 395 70 . 338 . 196 163 162 . 70 240 65 . 15 5 361 . 90 . 120 303 482 47 197 3686 Destroy 0b10 Robot/C 3720 | . 60 120 500 200 320 180 60 . 20 . . 120 140 . 40 . 20 . . . 40 . . . 100 20 80 . 40 1660 Destroy 0b10 Robot/NC 490 | 10 5 5 35 5 40 25 5 . 40 . 15 . . . 5 20 15 . 15 5 40 . 15 . 10 . 10 . 10 160 Destroy Leader 764 | . 12 30 130 30 96 66 . . 18 . . 20 20 . 10 4 . . . . 2 . . . 10 10 10 . . 296 Allied During Kill 133 | . . . . 11 15 . . . . . . 8 2 . . . . . . . . . . . . . 14 . . 83 Trap Triggered on 0b10 40 | . . . . . . 10 . . . . . . . . . . . . . . 10 . . . . . 20 . . . Successful Hack 281 | . 11 . 20 . 21 11 5 . 42 . 27 . . . . 56 . . . . . . . . . . 20 5 . 63 Disable Machine 555 | . 15 15 . 45 60 45 . . 30 . . . . . . 30 . . . . . . . . . . 120 . 45 150 Anti-Garrison Action 300 | . . . . . . . . . . . . . . . . . . . . . 150 . . . . . . . . 150 Destroy Structure 1042 | . . 57 5 2 35 43 . . 23 . 19 . . . . 40 . . . . 44 . . . . 48 58 27 27 614 Advance Influence 150 | . . . . . . . . . . . . . . . . . . . . . . . . . . 150 . . . . Partial Spotted 180 | . . . . . . . . . 30 . 30 . . . . 15 . . . . 15 . . . . 30 15 15 . 30 Lose Combat Pursuer 1320 | . . 15 45 . . 15 . . 135 . 105 15 . . 15 75 30 . . . 60 . 75 . . 45 135 . 75 480 Influence Decreases 6282 | 10 73 272 599 380 553 478 70 . 238 75 177 207 150 12 60 249 66 . 15 5 229 132 68 22 70 257 390 143 201 1081 Entered New Map 584 | . . 19 . 84 31 49 . . . 65 8 17 . 12 . 4 1 . . . . 50 . 22 . 17 42 83 41 39 Time Decay 4647 | 10 73 253 439 276 347 419 70 . 207 10 169 190 130 . 60 215 65 . 15 5 158 82 68 . 70 140 254 60 160 702 Search Patrol Dispatched 100 | . . . . . . . . . . . . . . . . . . . . . . . . . . 100 . . . . Lost Part 370 | . . . 10 . . 10 . . . . . . 20 . . 30 . . . . 10 . . . . . . . . 290 Lost Ally 227 | . . . . 20 25 . . . 31 . . . . . . . . . . . 61 . . . . . 40 . . 50 Purge Threat 354 | . . . 150 . 150 . . . . . . . . . . . . . . . . . . . . . 54 . . . Squads Dispatched 71 | . . . 2 . 2 1 . . 11 . 14 . . . . 8 . . . . 12 . . . . 4 5 2 1 9 Investigation 33 | . . . 1 . . . . . 5 . 8 . . . . 5 . . . . 7 . . . . 1 . 1 . 5 Extermination 16 | . . . . . . . . . 2 . 2 . . . . 3 . . . . 2 . . . . 1 3 1 1 1 Reinforcement 14 | . . . 1 . 2 . . . 4 . 3 . . . . . . . . . . . . . . 2 1 . . 1 Assault 5 | . . . . . . . . . . . . . . . . . . . . . 2 . . . . . 1 . . 2 Garrison 3 | . . . . . . 1 . . . . 1 . . . . . . . . . 1 . . . . . . . . . Intercept . | . . . . . . . . . . . . . . . . . . . . . . . . . . . . . . . Searches Triggered 1 | . . . . . . . . . . . . . . . . . . . . . . . . . . 1 . . . . Construction Impeded 1 | . . . . . . . . . 1 . . . . . . . . . . . . . . . . . . . . . Haulers Reinforced 1 | . . . . . . . . . 1 . . . . . . . . . . . . . . . . . . . . . Active Scanning Responses . | . . . . . . . . . . . . . . . . . . . . . . . . . . . . . . . Cargo Convoy Interrupts . | . . . . . . . . . . . . . . . . . . . . . . . . . . . . . . . Stealth | -11 -10 -10 -9 -9 -8 -8 -8 -8 -6 -6 -6 -6 -6 -6 -5 -5 -5 -5 -5 -4 -4 -4 -4 -4 -3 -3 -3 -2 -2 -2 --------- Run | Yrd Mat Min Mat Min Mat Sto Rec Scr Fac Was Fac Low Low Dat Pro Fac Upp Upp Zhi Pro Fac Upp Upp War Pro Res Tes Res Qua Frg Distress Signals 30 | . 1 2 3 . 3 1 . . 3 . 4 . . . . 1 . . . . 3 . . . . . 2 . 1 6 Communications Jammed 6 | . . . . . . . . . . . . . . . . . . . . . . . . . 2 3 1 . . . Distress Signals 4 | . . . . . . . . . . . . . . . . . . . . . . . . . . 3 1 . . . Times Spotted 581 | . 5 15 45 10 30 27 2 . 15 6 12 5 2 . 5 18 4 . . 1 13 . 5 . 3 9 23 12 12 302 Peak Tracking Total 13 | . 4 3 5 3 5 8 1 . 6 6 5 3 2 . 2 6 3 . . 1 7 . 2 . 1 3 8 8 5 13 Tactical Retreats 54 | . . 1 2 . . 1 . . 2 . 5 1 . . 1 5 1 . . . 2 . 3 . . 2 5 . 2 21 Traps | -11 -10 -10 -9 -9 -8 -8 -8 -8 -6 -6 -6 -6 -6 -6 -5 -5 -5 -5 -5 -4 -4 -4 -4 -4 -3 -3 -3 -2 -2 -2 ------- Run | Yrd Mat Min Mat Min Mat Sto Rec Scr Fac Was Fac Low Low Dat Pro Fac Upp Upp Zhi Pro Fac Upp Upp War Pro Res Tes Res Qua Frg Traps Triggered 6 | . . . 1 . . . . . 1 . . . . . . 1 . . . . . . . . . . . . 1 2 Indirectly . | . . . . . . . . . . . . . . . . . . . . . . . . . . . . . . . Trap Hack Attempts 31 | . . . . . . 24 . . 4 . . . . . . . . . . . . . . . . . 3 . . . Triggered . | . . . . . . . . . . . . . . . . . . . . . . . . . . . . . . . Disarmed 6 | . . . . . . 6 . . . . . . . . . . . . . . . . . . . . . . . . Reprogrammed 13 | . . . . . . 10 . . 1 . . . . . . . . . . . . . . . . . 2 . . . Reused 6 | . . . . . . 1 . . . . . . . . . . 1 . . . 1 . 1 . . . 2 . . . Traps Extracted . | . . . . . . . . . . . . . . . . . . . . . . . . . . . . . . . Installed 19 | . . . . . . . . . . . . . . . . . 1 . . 7 1 . 2 . . . 8 . . . Triggered 6 | . . . . . . 1 . . . . . . . . . . 1 . . . 1 . 1 . . . 2 . . . Most Traps Carried 8 | . . . . . . . . . . . . . . . . . 6 5 5 8 8 7 8 8 8 8 8 . . . Machines | -11 -10 -10 -9 -9 -8 -8 -8 -8 -6 -6 -6 -6 -6 -6 -5 -5 -5 -5 -5 -4 -4 -4 -4 -4 -3 -3 -3 -2 -2 -2 ---------- Run | Yrd Mat Min Mat Min Mat Sto Rec Scr Fac Was Fac Low Low Dat Pro Fac Upp Upp Zhi Pro Fac Upp Upp War Pro Res Tes Res Qua Frg Machines Disabled 43 | . 1 2 . 3 4 3 . . 2 . . . . . . 2 . . . . 1 . . . . . 9 . 3 13 Max in Single Turn 5 | . 1 1 . 3 1 1 . . 1 . . . . . . 1 . . . . . . . . . . 1 . 1 5 Garrison Access 10 | . . . . . . 1 . . 1 . . . . . . 2 . . . . 2 . . . . 1 1 . 1 1 Machines Repaired . | . . . . . . . . . . . . . . . . . . . . . . . . . . . . . . . Machines Dismantled 2 | . . . . . . 2 . . . . . . . . . . . . . . . . . . . . . . . . Machines Sabotaged . | . . . . . . . . . . . . . . . . . . . . . . . . . . . . . . . Overloaded Fab Kills . | . . . . . . . . . . . . . . . . . . . . . . . . . . . . . . . Hacking | -11 -10 -10 -9 -9 -8 -8 -8 -8 -6 -6 -6 -6 -6 -6 -5 -5 -5 -5 -5 -4 -4 -4 -4 -4 -3 -3 -3 -2 -2 -2 --------- Run | Yrd Mat Min Mat Min Mat Sto Rec Scr Fac Was Fac Low Low Dat Pro Fac Upp Upp Zhi Pro Fac Upp Upp War Pro Res Tes Res Qua Frg Machines Accessed 144 | . 3 1 8 . 9 9 5 2 14 . 13 2 2 3 . 18 1 1 4 . 14 2 . 2 . 5 10 2 2 12 Terminals 57 | . 2 . 6 . 6 5 5 . 4 . 3 . . . . 5 . . . . 3 . . . . 2 6 1 1 8 Fabricators 6 | . . . . . . . . . 2 . 1 . . . . 2 . . . . 1 . . . . . . . . . Repair Stations 10 | . 1 . 1 . 1 1 . . 1 . . . . . . 3 . . . . 1 . . . . . 1 . . . Recycling Units 30 | . . . . . . 2 . . 5 . 7 . . . . 5 . . . . 6 . . . . 1 . 1 . 3 Scanalyzers 10 | . . . 1 . 2 . . . 1 . . . . . . 1 . . . . 1 . . . . 1 2 . . 1 Garrison Access 11 | . . . . . . 1 . . 1 . 2 . . . . 2 . . . . 2 . . . . 1 1 . 1 . Total Hacks 344 | . 11 1 18 . 22 24 15 9 29 . 29 4 8 23 . 30 1 1 17 . 28 2 . 2 . 14 20 7 2 27 Successful 223 | . 3 1 13 . 11 12 8 9 15 . 16 4 8 23 . 22 1 1 17 . 21 2 . 2 . 4 13 3 2 12 Failed 119 | . 7 . 4 . 11 12 7 . 14 . 13 . . . . 8 . . . . 7 . . . . 10 7 4 . 15 Catastrophic 16 | . . . 1 . 3 2 1 . 2 . . . . . . . . . . . . . . . . 2 2 . . 3 Database Lockouts 2 | . 1 . 1 . . . . . . . . . . . . . . . . . . . . . . . . . . . Manual 133 | . 3 . 3 . 12 8 8 . 16 . 19 . . . . 10 . . . . 18 . . 1 . 5 4 6 1 19 Terminals 143 | . 7 . 11 . 13 17 15 . 11 . 9 . . . . 10 . . . . 9 . . . . 2 12 5 1 21 Fabricators 13 | . . . . . . . . . 5 . 3 . . . . 3 . . . . 2 . . . . . . . . . Repair Stations 24 | . 4 . 2 . 2 2 . . 2 . . . . . . 5 . . . . 3 . . . . . 4 . . . Recycling Units 49 | . . . . . . 3 . . 6 . 13 . . . . 6 . . . . 10 . . . . 4 . 2 . 5 Scanalyzers 24 | . . . 5 . 7 . . . 2 . . . . . . 1 . . . . 1 . . . . 4 3 . . 1 Garrison Access 23 | . . . . . . 2 . . 3 . 4 . . . . 5 . . . . 3 . . . . 4 1 . 1 . Terminal Hacks 112 | . 3 1 6 . 3 6 3 9 2 . 1 4 8 23 . 6 1 1 17 . 3 2 . 2 . . 6 1 . 4 Record 26 | . . . . . . . . 4 . . . 3 7 6 . . . . 5 . . 1 . . . . . . . . Part Schematic 15 | . . . . . . . 2 . . . . . . 9 . . . . 4 . . . . . . . . . . . Robot Schematic 5 | . . . . . . . . . . . . . . 5 . . . . . . . . . . . . . . . . Robot Analysis 12 | . 1 . . . 1 . . 5 1 . . . . . . . . . 4 . . . . . . . . . . . Prototype ID Bank 8 | . . . . . . . 1 . . . . . . 3 . . . . 4 . . . . . . . . . . . Open Door 8 | . . 1 . . . . . . . . . 1 1 . . . 1 1 . . . 1 . 2 . . . . . . Level Access Points 1 | . . . . . . . . . . . . . . . . . . . . . . . . . . . . . . 1 Branch Access Points 4 | . . . 1 . . . . . . . . . . . . 1 . . . . 1 . . . . . . 1 . . Recycling Unit Index 1 | . . . . . . . . . . . . . . . . . . . . . 1 . . . . . . . . . Unreport Threat 4 | . . . 1 . 1 . . . . . . . . . . . . . . . . . . . . . 2 . . . Locate Traps 9 | . . . 2 . 1 . . . 1 . . . . . . 3 . . . . . . . . . . . . . 2 Disarm Traps 2 | . . . . . . 2 . . . . . . . . . . . . . . . . . . . . . . . . Reprogram Traps 2 | . . . . . . 2 . . . . . . . . . . . . . . . . . . . . . . . . Recall Extermination 2 | . . . . . . . . . . . . . . . . 1 . . . . . . . . . . 1 . . . Hauler Manifests 2 | . . . 1 . . 1 . . . . . . . . . . . . . . . . . . . . . . . . Registered Components 1 | . 1 . . . . . . . . . . . . . . . . . . . . . . . . . . . . . Zone Layout 9 | . 1 . 1 . . 1 . . . . 1 . . . . 1 . . . . 1 . . . . . 2 . . 1 Protovariant Controls 1 | . . . . . . . . . . . . . . . . . . . . . . . . . . . 1 . . . Fabricator Hacks 4 | . . . . . . . . . 1 . 1 . . . . 1 . . . . 1 . . . . . . . . . Network Status 4 | . . . . . . . . . 1 . 1 . . . . 1 . . . . 1 . . . . . . . . . Repair Station Hacks 17 | . . . 2 . 2 2 . . 2 . . . . . . 3 . . . . 2 . . . . . 4 . . . Scan Component 9 | . . . 1 . 1 1 . . 1 . . . . . . 2 . . . . 1 . . . . . 2 . . . Repair 8 | . . . 1 . 1 1 . . 1 . . . . . . 1 . . . . 1 . . . . . 2 . . . Recycling Unit Hacks 9 | . . . . . . . . . . . 3 . . . . 1 . . . . 3 . . . . 1 . 1 . . Retrieve Components 9 | . . . . . . . . . . . 3 . . . . 1 . . . . 3 . . . . 1 . 1 . . Scanalyzer 15 | . . . 4 . 4 . . . 2 . . . . . . 1 . . . . 1 . . . . 1 2 . . . Insert Component 5 | . . . 2 . 2 . . . . . . . . . . . . . . . . . . . . . 1 . . . Analyze 2 | . . . 1 . 1 . . . . . . . . . . . . . . . . . . . . . . . . . Retrieve Study 8 | . . . 1 . 1 . . . 2 . . . . . . 1 . . . . 1 . . . . 1 1 . . . Garrison Access Hacks 8 | . . . . . . 1 . . 1 . . . . . . 2 . . . . 1 . . . . 1 1 . 1 . Seal Access 8 | . . . . . . 1 . . 1 . . . . . . 2 . . . . 1 . . . . 1 1 . 1 . Unauthorized Hacks 58 | . . . 1 . 2 3 5 . 7 . 11 . . . . 8 . . . . 10 . . . . 1 . 1 1 8 Terminals 19 | . . . 1 . 2 1 5 . . . 1 . . . . 1 . . . . 2 . . . . . . . 1 5 Track 3 | . . . . . . . . . . . . . . . . . . . . . . . . . . . . . . 3 Assimilate 1 | . . . . . . . . . . . . . . . . . . . . . . . . . . . . . . 1 Botnet 10 | . . . 1 . 2 1 1 . . . 1 . . . . 1 . . . . 1 . . . . . . . 1 1 Operators 1 | . . . . . . . . . . . . . . . . . . . . . 1 . . . . . . . . . Skim 4 | . . . . . . . 4 . . . . . . . . . . . . . . . . . . . . . . . Fabricators 7 | . . . . . . . . . 2 . 2 . . . . 2 . . . . 1 . . . . . . . . . Liberate 3 | . . . . . . . . . 1 . 1 . . . . 1 . . . . . . . . . . . . . . Haulers 4 | . . . . . . . . . 1 . 1 . . . . 1 . . . . 1 . . . . . . . . . Repair Stations . | . . . . . . . . . . . . . . . . . . . . . . . . . . . . . . . Recycling Units 30 | . . . . . . 2 . . 5 . 7 . . . . 5 . . . . 6 . . . . 1 . 1 . 3 Reject 2 | . . . . . . 2 . . . . . . . . . . . . . . . . . . . . . . . . Fedlink 26 | . . . . . . . . . 5 . 7 . . . . 5 . . . . 6 . . . . 1 . 1 . 1 Scraphulk 2 | . . . . . . . . . . . . . . . . . . . . . . . . . . . . . . 2 Scanalyzers . | . . . . . . . . . . . . . . . . . . . . . . . . . . . . . . . Garrison Access 2 | . . . . . . . . . . . 1 . . . . . . . . . 1 . . . . . . . . . Reprogram 2 | . . . . . . . . . . . 1 . . . . . . . . . 1 . . . . . . . . . Data Cores Recovered 1 | . . . . . 1 . . . . . . . . . . . . . . . . . . . . . . . . . Used . | . . . . . . . . . . . . . . . . . . . . . . . . . . . . . . . Hacking Detections 73 | . 2 . 6 . 9 5 3 . 8 . 8 . . . . 8 . . . . 4 . . . . 5 6 1 . 8 Full Trace Events 2 | . . . . . 2 . . . . . . . . . . . . . . . . . . . . . . . . . Feedback Events . | . . . . . . . . . . . . . . . . . . . . . . . . . . . . . . . Feedback Blocked . | . . . . . . . . . . . . . . . . . . . . . . . . . . . . . . . Robot Schematics Acquired 8 | . . . . . . . . . . . . . . 5 . . . . . . . . . . . . 3 . . . Robots Built . | . . . . . . . . . . . . . . . . . . . . . . . . . . . . . . . Authchips . | . . . . . . . . . . . . . . . . . . . . . . . . . . . . . . . Time . | . . . . . . . . . . . . . . . . . . . . . . . . . . . . . . . Total Robot Build Rating . | . . . . . . . . . . . . . . . . . . . . . . . . . . . . . . . Part Schematics Acquired 18 | . . . . . 1 . 2 . . . . . . 9 . . . . 4 . . . . . . . 2 . . . Parts Built . | . . . . . . . . . . . . . . . . . . . . . . . . . . . . . . . Authchips . | . . . . . . . . . . . . . . . . . . . . . . . . . . . . . . . Time . | . . . . . . . . . . . . . . . . . . . . . . . . . . . . . . . Total Part Build Rating . | . . . . . . . . . . . . . . . . . . . . . . . . . . . . . . . Part Studies Acquired 8 | . . . 1 . 1 . . . 2 . . . . . . 1 . . . . 1 . . . . 1 1 . . . Parts Repaired 8 | . . . 1 . 1 1 . . 1 . . . . . . 1 . . . . 1 . . . . . 2 . . . Time 361 | . . . 26 . 68 51 . . 38 . . . . . . 34 . . . . 70 . . . . . 74 . . . Parts Recycled . | . . . . . . . . . . . . . . . . . . . . . . . . . . . . . . . Recycled Matter . | . . . . . . . . . . . . . . . . . . . . . . . . . . . . . . . Retrieved Matter . | . . . . . . . . . . . . . . . . . . . . . . . . . . . . . . . Retrieved Components 22 | . . . . . . . . . . . 3 . . . . 1 . . . . 14 . . . . 1 . 3 . . Parts Scanalyzed 2 | . . . 1 . 1 . . . . . . . . . . . . . . . . . . . . . . . . . Part Schematics Acquired 1 | . . . . . 1 . . . . . . . . . . . . . . . . . . . . . . . . . Parts Damaged 1 | . . . . . 1 . . . . . . . . . . . . . . . . . . . . . . . . . Bothacking | -11 -10 -10 -9 -9 -8 -8 -8 -8 -6 -6 -6 -6 -6 -6 -5 -5 -5 -5 -5 -4 -4 -4 -4 -4 -3 -3 -3 -2 -2 -2 ------------ Run | Yrd Mat Min Mat Min Mat Sto Rec Scr Fac Was Fac Low Low Dat Pro Fac Upp Upp Zhi Pro Fac Upp Upp War Pro Res Tes Res Qua Frg Used RIF Installer . | . . . . . . . . . . . . . . . . . . . . . . . . . . . . . . . Robots Hacked 22 | . . . . . . 1 . 1 7 . 1 . . 1 . 1 . . 3 . 1 . . 1 . 1 4 . . . Non-combat 6 | . . . . . . . . . 3 . 1 . . . . . . . . . 1 . . 1 . . . . . . Combat 6 | . . . . . . 1 . 1 . . . . . 1 . . . . 3 . . . . . . . . . . . Robot Hacks Applied 12 | . . . . . . 1 . 1 3 . 1 . . 1 . . . . 3 . 1 . . 1 . . . . . . parse_system 7 | . . . . . . 1 . 1 . . . . . 1 . . . . 3 . . . . 1 . . . . . . find_chute 2 | . . . . . . . . . 1 . . . . . . . . . . . 1 . . . . . . . . . find_recycling 3 | . . . . . . . . . 2 . 1 . . . . . . . . . . . . . . . . . . . Manual 10 | . . . . . . . . . 4 . . . . . . 1 . . . . . . . . . 1 4 . . . Relay Couplers Released 7 | . . . . . . . . . . . . . . . . . . . . . 2 . . . . . . . 2 3 Machine Destruction 7 | . . . . . . . . . . . . . . . . . . . . . 2 . . . . . . . 2 3 Fabnet Peak Effective % . | . . . . . . . . . . . . . . . . . . . . . . . . . . . . . . . Robots Rewired 2 | . . . . . . . . . . . . . . . . . . . . . 1 . . . . . 1 . . . Allies Hacked . | . . . . . . . . . . . . . . . . . . . . . . . . . . . . . . . Hacks Repelled . | . . . . . . . . . . . . . . . . . . . . . . . . . . . . . . . Allies | -11 -10 -10 -9 -9 -8 -8 -8 -8 -6 -6 -6 -6 -6 -6 -5 -5 -5 -5 -5 -4 -4 -4 -4 -4 -3 -3 -3 -2 -2 -2 -------- Run | Yrd Mat Min Mat Min Mat Sto Rec Scr Fac Was Fac Low Low Dat Pro Fac Upp Upp Zhi Pro Fac Upp Upp War Pro Res Tes Res Qua Frg Total Allies 23 | . . . . 4 . . . . 4 . 1 . . . . 1 . . . . 4 . . . . 1 5 . . 3 Largest Group 4 | . . . . 4 2 . . . 1 . 1 1 . . . 1 . . . . 3 . . . . 1 4 . . 2 Highest-Rated Group 290 | . . . . 71 32 . . . 26 . 32 32 . . . 26 . . . . 141 . . . . 45 290 . . 278 Highest-Rated Ally 155 | . . . . 31 16 . . . 26 . 32 32 . . . 26 . . . . 64 . . . . 45 155 . . 139 Initial UFD Resources 131 | . . . . . . . . . 24 44 44 58 58 58 61 61 81 81 81 83 83 105 105 105 107 107 117 121 131 131 Total Orders 16 | . . . . . 10 . . . 1 . . . . . . . . . . . . . . . . . 3 . . 2 STAY 5 | . . . . . 1 . . . 1 . . . . . . . . . . . . . . . . . 2 . . 1 FOLLOW 3 | . . . . . 1 . . . . . . . . . . . . . . . . . . . . . 1 . . 1 EXPLORE 7 | . . . . . 7 . . . . . . . . . . . . . . . . . . . . . . . . . RETURN 1 | . . . . . 1 . . . . . . . . . . . . . . . . . . . . . . . . . Ally Attacks 154 | . . . . 17 43 . . . . . . 9 . . . . . . . . 10 . . . . . 7 . . 68 Total Damage 5051 | . . . . 152 252 . . . . . . 262 . . . . . . . . 347 . . . . . 368 . . 3670 Kills 24 | . . . . 3 2 . . . . . . 1 . . . . . . . . 1 . . . . . 2 . . 15 Allies Corrupted . | . . . . . . . . . . . . . . . . . . . . . . . . . . . . . . . Allies Melted 4 | . . . . . . . . . . . . . . . . . . . . . 1 . . . . . . . . 3 Intel | -11 -10 -10 -9 -9 -8 -8 -8 -8 -6 -6 -6 -6 -6 -6 -5 -5 -5 -5 -5 -4 -4 -4 -4 -4 -3 -3 -3 -2 -2 -2 ------- Run | Yrd Mat Min Mat Min Mat Sto Rec Scr Fac Was Fac Low Low Dat Pro Fac Upp Upp Zhi Pro Fac Upp Upp War Pro Res Tes Res Qua Frg Active Infowar (turns) 8686 | . . . . . 2 . . . 681 31 340 356 242 30 129 819 499 268 22 224 704 308 499 236 266 291 799 138 332 1470 Optics 4969 | . . . . . 2 . . . . . . . . . . . . . . . 628 308 499 236 266 291 799 138 332 1470 Sensors 7845 | . . . . . . . . . 681 31 340 356 242 30 129 819 496 267 22 224 636 290 448 220 248 229 707 125 298 1007 Decoding 76 | . . . . . . . . . . . . . . . . . . . . . 76 . . . . . . . . . Jamming 923 | . . . . . . . . . . . . . . . . 17 3 1 . . . . 31 . 97 291 483 . . . Robot Analysis Total 12 | . 1 . . . 1 . . 5 1 . . . . . . . . . 4 . . . . . . . . . . . Derelict Logs Recovered 14 | . . 1 . 2 . . . . . . . 3 1 . 1 . 1 1 . 1 . 2 1 . . . . . . . Drone Launches 18 | . . . . . 18 . . . . . . . . . . . . . . . . . . . . . . . . . Drone Recoveries 2 | . . . . . 2 . . . . . . . . . . . . . . . . . . . . . . . . . Decoded 0b10 Intel 1 | . . . . . . . . . . . . . . . . . . . . . 1 . . . . . . . . . Traps 1 | . . . . . . . . . . . . . . . . . . . . . 1 . . . . . . . . . Exploration | -11 -10 -10 -9 -9 -8 -8 -8 -8 -6 -6 -6 -6 -6 -6 -5 -5 -5 -5 -5 -4 -4 -4 -4 -4 -3 -3 -3 -2 -2 -2 ------------- Run | Yrd Mat Min Mat Min Mat Sto Rec Scr Fac Was Fac Low Low Dat Pro Fac Upp Upp Zhi Pro Fac Upp Upp War Pro Res Tes Res Qua Frg Turns Passed 20338 | 112 313 1151 1309 779 1584 1597 1297 1512 756 31 373 494 269 32 169 867 505 268 80 240 704 308 499 236 266 291 799 138 332 3027 Spaces Moved 23457 | 59 171 655 519 458 756 740 770 920 1468 87 865 938 665 89 309 1538 806 737 167 399 1416 865 835 591 643 637 1420 363 664 2907 Core 4 | 4 . . . . . . . . . . . . . . . . . . . . . . . . . . . . . . Treads 5044 | 55 171 655 519 458 756 740 770 920 . . . . . . . . . . . . . . . . . . . . . . Legs . | . . . . . . . . . . . . . . . . . . . . . . . . . . . . . . . Wheels 1696 | . . . . . . . . . . . . . . . . . . . . . . . . . . . . . . 1696 Hover . | . . . . . . . . . . . . . . . . . . . . . . . . . . . . . . . Flight 16713 | . . . . . . . . . 1468 87 865 938 665 89 309 1538 806 737 167 399 1416 865 835 591 643 637 1420 363 664 1211 Fastest Speed 14 | 50 160 160 160 160 155 163 163 163 27 27 26 25 25 25 31 27 27 27 27 27 27 31 31 28 28 23 23 24 25 14 Average Speed 60 | 152 160 160 160 160 160 163 163 163 29 27 29 26 25 25 31 27 27 27 27 27 32 31 31 30 28 26 24 24 25 55 Slowest Speed 200 | 160 160 160 160 160 163 200 163 163 104 27 96 94 92 31 31 97 27 27 135 27 105 31 31 109 28 95 99 25 25 90 Overloaded Moves 79 | . . . . . . . . . . . . . . . . . . . . . . . . . . . . . . 79 Propulsion Burnouts . | . . . . . . . . . . . . . . . . . . . . . . . . . . . . . . . Robots Hopped 64 | . . . . . . . . . 7 . 6 . . . 1 7 . 1 . . 7 1 . . . 9 14 2 5 4 Potential Cave-ins 12 | . . . . . . . . . . . . . . . . 2 . . . 2 . . . . . . 3 . . 5 Cave-ins Triggered 2 | . . . . . . . . . . . . . 1 . . 1 . . . . . . . . . . . . . . Exploration Rate (%) 65 | 5 37 97 50 90 61 95 98 83 42 80 31 79 75 74 52 48 93 93 60 59 37 91 91 80 82 24 89 14 62 63 Regions Visited 30 Branch Regions 20 Pre-discovered Areas 9 | . . . . 1 . . . . 1 . . 1 1 1 . . . . 3 1 . . . . . . . . . . Known Exits Taken 24 | . . . 1 . 1 1 1 1 . . 1 1 1 1 1 1 1 1 1 1 1 1 1 1 1 1 1 1 1 . Unknown Exits Taken 4 | 1 1 1 . 1 . . . . . . . . . . . . . . . . . . . . . . . . . . Scrap Searched 37 | . . 1 . 1 . . . 6 . . . 6 5 . . . 2 1 . 3 . 5 3 . 4 . . . . . Spaces Dug 434 | . . 18 1 . 18 28 . . 23 . 19 26 71 . 9 25 10 2 . 7 23 2 4 . 34 10 23 9 9 63 Terrain Destroyed 985 | . . 79 5 2 41 54 . . 23 . 19 68 91 . 14 26 11 4 . 7 24 2 4 . 121 26 23 9 9 323 Melee 151 | . . 1 1 . . . . . 22 . 18 9 3 . 1 15 4 . . 2 19 2 2 . 6 2 12 9 9 14 Projectile 280 | . . . . . 5 8 . . 1 . 1 . . . 13 10 6 4 . 5 5 . 2 . 9 9 11 . . 191 AOE 543 | . . 78 4 2 36 46 . . . . . 50 88 . . . . . . . . . . . 106 15 . . . 118 Terrain Rammed . | . . . . . . . . . . . . . . . . . . . . . . . . . . . . . . . Walls Destroyed . | . . . . . . . . . . . . . . . . . . . . . . . . . . . . . . . Machines Disabled . | . . . . . . . . . . . . . . . . . . . . . . . . . . . . . . . Actions | -11 -10 -10 -9 -9 -8 -8 -8 -8 -6 -6 -6 -6 -6 -6 -5 -5 -5 -5 -5 -4 -4 -4 -4 -4 -3 -3 -3 -2 -2 -2 --------- Run | Yrd Mat Min Mat Min Mat Sto Rec Scr Fac Was Fac Low Low Dat Pro Fac Upp Upp Zhi Pro Fac Upp Upp War Pro Res Tes Res Qua Frg Total 28129 | 74 195 732 810 486 1045 1056 797 933 1705 94 936 1128 744 97 354 1925 1071 799 193 515 1590 899 1057 649 700 719 1812 391 775 3848 Wait 2678 | 2 6 27 130 11 179 201 10 2 130 4 28 132 45 . 15 292 229 56 . 87 87 17 193 17 24 37 263 13 72 369 Move 23304 | 58 170 654 518 457 755 739 769 919 1454 86 852 937 664 88 306 1522 805 734 166 398 1401 862 834 590 642 619 1393 358 655 2899 Hop 59 | . . . . . . . . . 7 . 6 . . . 1 7 . 1 . . 7 1 . . . 8 12 2 3 4 Pick Up 146 | 6 5 5 13 2 16 8 . 2 9 1 5 1 1 2 1 9 3 1 2 1 4 . . 3 1 5 8 2 4 26 Fast Attach 169 | 6 2 2 6 . 8 5 2 3 2 . . . 4 . 1 7 2 . 7 . 7 6 2 15 . 3 20 1 1 57 Attach 60 | . . . 3 . 3 1 . 1 5 . 1 . 2 1 1 6 . . 1 . 3 . . . 1 2 . 2 . 27 Detach 62 | . 1 . . . 1 3 2 1 3 . . . 2 . . 6 . . . . 4 1 . 2 . . 2 . 2 32 Swap 289 | . 2 11 15 3 11 17 . 1 28 1 17 24 6 3 7 15 9 2 1 10 13 3 14 3 9 12 21 1 8 22 Drop 238 | . 2 10 22 2 21 11 4 3 11 2 3 1 3 2 . 8 4 1 7 1 6 6 2 18 . 6 28 1 5 48 Fire 657 | 2 7 17 94 9 48 23 8 . 4 . 2 20 6 . 20 12 8 4 . 5 5 . 2 . 11 13 21 . . 316 Melee 357 | . . 1 2 . . 1 . 1 48 . 22 13 11 1 2 35 10 . 9 6 52 3 8 1 12 14 33 11 25 36 Ram . | . . . . . . . . . . . . . . . . . . . . . . . . . . . . . . . Kick . | . . . . . . . . . . . . . . . . . . . . . . . . . . . . . . . Crush 26 | . . 5 7 2 3 7 2 . . . . . . . . . . . . . . . . . . . . . . . Escape Stasis 18 | . . . . . . . . . . . . . . . . 6 . . . . . . . . . . . . . 12 Rewire . | . . . . . . . . . . . . . . . . . . . . . . . . . . . . . . . Trap 50 | . . . . . . 24 . . 4 . . . . . . . 1 . . 7 1 . 2 . . . 11 . . . Miscellaneous 16 | . . . . . . 16 . . . . . . . . . . . . . . . . . . . . . . . . Route ------- -11/Scrapyard -10/Materials -10/Mines (discovered 2 exits: *Mat x2) -9/Materials (discovered 2 exits: *Mat / *Min) -9/Mines (discovered 2 exits: *Mat x2) -8/Materials -8/Storage (discovered 2 exits: [*Fac] / *Rec) -8/Recycling (discovered 2 exits: *Fac / *Scr) -8/Scraptown (discovered 2 exits: *Fac x2) -6/Factory (discovered 4 exits: *Fac x2 / *Low / [*Ext]) -6/Waste -6/Factory -6/Lower Caves -6/Lower Caves (discovered 2 exits: *Fac / *Dat) -6/Data Miner -5/Proximity Caves -5/Factory (discovered 4 exits: *Fac x2 / *Upp x2) -5/Upper Caves -5/Upper Caves (discovered 2 exits: *Fac / *Zhi) -5/Zhirov -4/Proximity Caves -4/Factory (discovered 4 exits: Res / *Upp x2 / Arm) -4/Upper Caves -4/Upper Caves -4/Warlord -3/Proximity Caves -3/Research (discovered 2 exits: Res / *Tes) -3/Testing -2/Research (discovered 3 exits: *Acc / *Qua x2) -2/Quarantine (discovered 3 exits: *Acc / [*Sec] / *Frg) -2/Protoforge (discovered 1 exit: *Acc) History --------- Turn | Location | Event 10 | -11/Scrapyard | Discovered new exit (range 14) 113 | -11/Scrapyard | Entered Materials 139 | -10/Materials | Central database locked down 311 | -10/Materials | Build established: Mutant 349 | -10/Materials | Discovered new exit (range 11) 426 | -10/Materials | Entered Mines 454 | -10/Mines | Met a Derelict bent on vengeance 559 | -10/Mines | Discovered new exit (range 12) 573 | -10/Mines | Found the Drone Emporium 584 | -10/Mines | Found Prototype Device 822 | -10/Mines | Assembled infested the area 1259 | -10/Mines | Discovered new exit (range 11) 1412 | -10/Mines | Learned Materials terminal intel 1429 | -10/Mines | Joined a pair of Derelicts in attacking an 0b10 outpost 1577 | -10/Mines | Entered Materials 1577 | -9/Materials | Evolved 2 slots: Propulsion x1, Utility x1 1578 | -9/Materials | Loaded intel: 12 terminal locations 1884 | -9/Materials | Build established: Scavenger-Mutant 2033 | -9/Materials | Central database locked down 2033 | -9/Materials | Identified Bomb Drone Bay 2095 | -9/Materials | Identified exit to Mines 2431 | -9/Materials | Repaired Lgt. Treads+ 2497 | -9/Materials | Discovered new exit (range 15) 2886 | -9/Materials | Entered Mines 3191 | -9/Mines | Learned location of Zion (-7) 3191 | -9/Mines | Assisted by bots powering up and referring to "LRC-V3" 3211 | -9/Mines | Received a Mining Laser from a helpful Derelict 3324 | -9/Mines | Deemed a non-threat by the Exiles lab entrance 3368 | -9/Mines | Received a Rocket Launcher from a helpful Derelict 3498 | -9/Mines | Discovered new exit (range 5) 3599 | -9/Mines | Found a damaged Exp. Sensor Array with a note attached 3604 | -9/Mines | Found Prototype Device 3642 | -9/Mines | Discovered new exit (range 7) 3665 | -9/Mines | Entered Materials 3665 | -8/Materials | Accompanied by 2 allies 3665 | -8/Materials | Evolved 2 slots: Utility x2 3666 | -8/Materials | Identified exit to Storage 3923 | -8/Materials | Lost 7 allies 4023 | -8/Materials | Identified Exp. Sensor Array 4517 | -8/Materials | Destroyed 8 combat bots 4568 | -8/Materials | Lost 3 allies 4756 | -8/Materials | Build established: Mutant 5220 | -8/Materials | Repaired Broken Exp. Sensor Array 5226 | -8/Materials | Build established: Hacker-Mutant 5249 | -8/Materials | Entered Storage 5470 | -8/Storage | Repaired Cld. Ion Engine 5646 | -8/Storage | Discovered new exit (range 13) 5778 | -8/Storage | Found Prototype Processor 5778 | -8/Storage | Identified Exp. Targeting Computer 6132 | -8/Storage | Build established: Mutant 6166 | -8/Storage | Met 01-MTF 6221 | -8/Storage | Garrison activated, responded to threat 6562 | -8/Storage | Discovered new exit (range 6) 6843 | -8/Storage | Identified exit to Recycling 6846 | -8/Storage | Entered Recycling 6846 | -8/Recycling | Accompanied by 1 ally (01-MTF) 7132 | -8/Recycling | Discovered new exit (range 10) 7457 | -8/Recycling | Scanned before Scraplab entrance 7487 | -8/Recycling | Found Prototype Energy Gun 7487 | -8/Recycling | Identified KN-7UR's Autopenetrator 8002 | -8/Recycling | Build established: Hacker-Mutant 8127 | -8/Recycling | Entered Scraplab 8140 | -8/Recycling | Discovered new exit (range 2) 8140 | -8/Recycling | Identified exit to Scraptown 8143 | -8/Recycling | Entered Scraptown 8143 | -8/Scraptown | System corruption cleaned by C-Scrubber 8497 | -8/Scraptown | Discovered new exit (range 13) 8669 | -8/Scraptown | Visited Comm Corps 8683 | -8/Scraptown | Visited SPCMW 8775 | -8/Scraptown | Visited Cyclists 8788 | -8/Scraptown | Visited Assassins FH 8858 | -8/Scraptown | Visited Fellowship of the Rings 8881 | -8/Scraptown | Visited Symbiants 8890 | -8/Scraptown | Visited Shadow of the Wyrm 8928 | -8/Scraptown | Visited UFD Registry 8928 | -8/Scraptown | Registered with UFD as "Plasmatail" 8970 | -8/Scraptown | Visited Junk Repository 9075 | -8/Scraptown | Visited Abandonware Association 9098 | -8/Scraptown | Learned abandonware demo "HACKBUD.EXE" 9140 | -8/Scraptown | Visited Scrapoid Research Area 9168 | -8/Scraptown | Visited Chapter 10 9191 | -8/Scraptown | Visited Curators Association 9212 | -8/Scraptown | Visited Analyses Database 9246 | -8/Scraptown | Visited DA-N13 Charitable Foundation 9261 | -8/Scraptown | Found DCF Scrap (30 items) 9294 | -8/Scraptown | Visited Research Penetration Think Tank 9326 | -8/Scraptown | Visited Science Guys 9572 | -8/Scraptown | Met Optimus 9572 | -8/Scraptown | Accepted into 0bPrime 9652 | -8/Scraptown | Discovered new exit (range 3) 9654 | -8/Scraptown | Identified exit to Factory 9655 | -8/Scraptown | Entered Factory 9655 | -6/Factory | Evolved 4 slots: Propulsion x2, Utility x2 9749 | -6/Factory | Spotted B-75 Beast 9826 | -6/Factory | Discovered new exit (range 13) 9898 | -6/Factory | Discovered new exit (range 8) 9960 | -6/Factory | Build established: Hacker-Sprinter 10121 | -6/Factory | Loaded intel: 8 recycling unit locations 10154 | -6/Factory | Learned location of Protoforge (-2) 10154 | -6/Factory | Discovered new exit (range 7) 10377 | -6/Factory | Repaired Imp. Light Armor Plating 10390 | -6/Factory | Discovered new exit (range 16) 10411 | -6/Factory | Manually triggered Chute Trap 10411 | -6/Factory | Sucked down chute 10411 | -6/Factory | Entered Waste 10425 | -6/Waste | Spotted C-40 Crusher 10425 | -6/Waste | Spotted C-40 Crusher 10426 | -6/Waste | EMP discharged 10426 | -6/Waste | Spotted C-40 Crusher 10426 | -6/Waste | Spotted C-40 Crusher 10428 | -6/Waste | Spotted C-40 Crusher 10428 | -6/Waste | Spotted C-40 Crusher 10438 | -6/Waste | Discovered new exit (range 11) 10442 | -6/Waste | Identified exit to Factory 10442 | -6/Waste | Entered Factory 10513 | -6/Factory | Loaded intel: 8 recycling unit locations 10714 | -6/Factory | Discovered new exit (range 13) 10717 | -6/Factory | Identified exit to Lower Caves 10815 | -6/Factory | Entered Lower Caves 10815 | -6/Lower Caves | Accompanied by 1 ally 11176 | -6/Lower Caves | Learned Factory emergency access door positions 11190 | -6/Lower Caves | Entered an active Warlord outpost 11194 | -6/Lower Caves | Learned Research security intel 11213 | -6/Lower Caves | Learned Factory security intel 11215 | -6/Lower Caves | Encountered a Warlord checkpoint 11244 | -6/Lower Caves | Attracted the attention of an 0b10 checkpoint 11273 | -6/Lower Caves | Discovered new exit (range 7) 11275 | -6/Lower Caves | Learned 4 Factory zone layouts 11296 | -6/Lower Caves | Identified exit to Lower Caves 11309 | -6/Lower Caves | Entered another Lower Caves area 11309 | -6/Lower Caves | Accompanied by 1 ally 11367 | -6/Lower Caves | Discovered new exit (range 16) 11402 | -6/Lower Caves | Crushed by falling debris 11489 | -6/Lower Caves | Entered an active Warlord outpost 11492 | -6/Lower Caves | Learned location of 1 exit from Research 11492 | -6/Lower Caves | Learned Research trap positions 11492 | -6/Lower Caves | Learned Extension stockpile data 11492 | -6/Lower Caves | Learned Armory security intel 11520 | -6/Lower Caves | Destroyed TR-06U(g) 11533 | -6/Lower Caves | Encountered a Warlord checkpoint 11565 | -6/Lower Caves | Discovered new exit (range 12) 11568 | -6/Lower Caves | Identified exit to Data Miner 11570 | -6/Lower Caves | Learned location of 1 exit from Factory 11578 | -6/Lower Caves | Entered Data Miner 11578 | -6/Data Miner | Discovered new exit (range 6) 11583 | -6/Data Miner | Met Data Miner 11593 | -6/Data Miner | Learned location of Section 7 (-2) 11593 | -6/Data Miner | Acquired the access code to Warlord's prototype stash 11597 | -6/Data Miner | Received God Mode back door access code from Data Miner 11605 | -6/Data Miner | Identified exit to Proximity Caves 11610 | -6/Data Miner | Entered Proximity Caves 11693 | -5/Proximity Caves | Learned Factory interactive machine intel 11749 | -5/Proximity Caves | Attracted the attention of an 0b10 checkpoint 11777 | -5/Proximity Caves | Discovered new exit (range 8) 11778 | -5/Proximity Caves | Identified exit to Factory 11779 | -5/Proximity Caves | Entered Factory 11779 | -5/Factory | Evolved 2 slots: Propulsion x1, Utility x1 11780 | -5/Factory | Identified exit to Factory 11784 | -5/Factory | Loaded intel: 54 interactive machine locations 11788 | -5/Factory | Watched by a mysterious "MATRIX" hacker. 11907 | -5/Factory | Loaded intel: 8 recycling unit locations 12043 | -5/Factory | Identified exit to Upper Caves 12101 | -5/Factory | Discovered exit to Factory (range 4) 12124 | -5/Factory | Crushed by falling debris 12155 | -5/Factory | Lost 3 parts (1p1n1u) 12190 | -5/Factory | Repaired Impulse Thruster Array 12646 | -5/Factory | Entered Upper Caves 12861 | -5/Upper Caves | Identified exit to Upper Caves 12938 | -5/Upper Caves | Encountered a Warlord checkpoint 13151 | -5/Upper Caves | Entered another Upper Caves area 13187 | -5/Upper Caves | Discovered exit to Factory (range 7) 13218 | -5/Upper Caves | Encountered a Warlord checkpoint 13331 | -5/Upper Caves | Learned Factory stockpile data 13412 | -5/Upper Caves | Discovered new exit (range 7) 13413 | -5/Upper Caves | Identified exit to Zhirov 13419 | -5/Upper Caves | Entered Zhirov 13419 | -5/Zhirov | Discovered new exit (range 3) 13424 | -5/Zhirov | Met Zhirov 13435 | -5/Zhirov | Learned location of Quarantine (-2) 13435 | -5/Zhirov | Learned location of Testing (-3) 13435 | -5/Zhirov | Learned location of Command (-1) 13437 | -5/Zhirov | Zhirov requested help retrieving the SGEMP Prototype 13442 | -5/Zhirov | Found Alien Artifact 13442 | -5/Zhirov | Identified Integrated Reactor 13442 | -5/Zhirov | Installed Integrated Reactor, increased core energy generation (+10) 13487 | -5/Zhirov | Found Alien Artifact 13499 | -5/Zhirov | Identified exit to Proximity Caves 13499 | -5/Zhirov | Entered Proximity Caves 13673 | -4/Proximity Caves | Spotted B-86 Titan 13695 | -4/Proximity Caves | Discovered exit to Factory (range 8) 13739 | -4/Proximity Caves | Entered Factory 13739 | -4/Factory | Evolved 2 slots: Power x1, Utility x1 13740 | -4/Factory | Identified exit to Research 13740 | -4/Factory | Identified exit to Armory 13827 | -4/Factory | Loaded intel: 8 recycling unit locations 13972 | -4/Factory | Identified exit to Upper Caves 13997 | -4/Factory | Garrison activated, responded to threat 14420 | -4/Factory | Repaired Imp. Cesium-ion Thruster? 14443 | -4/Factory | Entered Upper Caves 14503 | -4/Upper Caves | Build established: Hacker-Scout 14620 | -4/Upper Caves | Entered a destroyed Warlord outpost 14650 | -4/Upper Caves | Discovered new exit (range 21) 14751 | -4/Upper Caves | Identified exit to Upper Caves 14751 | -4/Upper Caves | Entered another Upper Caves area 14756 | -4/Upper Caves | Learned Research trap positions 15127 | -4/Upper Caves | Discovered new exit (range 22) 15250 | -4/Upper Caves | Identified exit to Warlord 15250 | -4/Upper Caves | Entered Warlord 15304 | -4/Warlord | Found Prototype Special Weapon 15304 | -4/Warlord | Identified RU-N14's Throwing Claymores v3 15310 | -4/Warlord | Found RU-N14's Throwing Claymores v3 15311 | -4/Warlord | Found RU-N14's Throwing Claymores v3 15362 | -4/Warlord | Opened Warlord's prototype stash 15377 | -4/Warlord | Found Prototype Device 15377 | -4/Warlord | Identified Thermal Barrier 15382 | -4/Warlord | Found Ghost Barrier 15387 | -4/Warlord | Found Prototype Reactor 15387 | -4/Warlord | Identified Vortex Chain Reactor 15411 | -4/Warlord | Visited the Vortex Lab 15412 | -4/Warlord | Found Prototype Energy Gun 15412 | -4/Warlord | Identified Vortex Rifle 15415 | -4/Warlord | Found Prototype Energy Gun 15415 | -4/Warlord | Identified Vortex Rail 15417 | -4/Warlord | Found Prototype Energy Cannon 15417 | -4/Warlord | Identified Vortex Driver 15425 | -4/Warlord | Met EX-DEC 15433 | -4/Warlord | Warlord's base attacked by MAIN.C 15474 | -4/Warlord | Opened side exit 15480 | -4/Warlord | Discovered new exit (range 9) 15482 | -4/Warlord | Identified exit to Proximity Caves 15486 | -4/Warlord | Entered Proximity Caves 15673 | -3/Proximity Caves | Spotter reported a threat 15721 | -3/Proximity Caves | Discovered exit to Research (range 6) 15752 | -3/Proximity Caves | Entered Research 15752 | -3/Research | Evolved 2 slots: Propulsion x1, Utility x1 15753 | -3/Research | Identified exit to Testing 15754 | -3/Research | Identified exit to Research 15755 | -3/Research | Loaded intel: 76 trap records 15843 | -3/Research | Loaded intel: 5 recycling unit locations 15964 | -3/Research | Spotted B-86 Titan 16002 | -3/Research | Search patrols dispatched 16043 | -3/Research | Entered Testing 16043 | -3/Testing | Accompanied by 1 ally 16124 | -3/Testing | Repaired Impulse Thruster Array+ 16167 | -3/Testing | Repaired Exp. Utility Shielding 16260 | -3/Testing | Protovariant out of control (PH-MVNMXDNH20) 16260 | -3/Testing | Unleashed a protovariant (PH-MVNMXDNH20) 16283 | -3/Testing | Found Prototype Ballistic Cannon 16283 | -3/Testing | Identified Omega Cannon 16344 | -3/Testing | Found Prototype Protection 16344 | -3/Testing | Identified Hvy. Regenerative Plating 16349 | -3/Testing | Found Prototype Protection 16349 | -3/Testing | Identified Med. Regenerative Plating 16352 | -3/Testing | Found Med. Regenerative Plating 16516 | -3/Testing | Spotted Investigator 16576 | -3/Testing | Scanned by Researcher 16581 | -3/Testing | Destroyed Investigator 16599 | -3/Testing | Found Prototype Energy Cannon 16599 | -3/Testing | Identified Null Cannon 16616 | -3/Testing | Rewired PH-YNPFTF8R1B 16722 | -3/Testing | Found Prototype Launcher 16731 | -3/Testing | Identified Tactical Quantum Warhead 16779 | -3/Testing | Discovered exit to Research (range 7) 16814 | -3/Testing | Found Prototype Device 16814 | -3/Testing | Identified AEGIS Remote Shield 16829 | -3/Testing | Found Prototype Device 16829 | -3/Testing | Identified Exp. Hardlight Generator 16842 | -3/Testing | Entered Research 16842 | -2/Research | Evolved 2 slots: Propulsion x1, Utility x1 16843 | -2/Research | Loaded intel: 73 trap records 16853 | -2/Research | Identified exit to Quarantine 16871 | -2/Research | Loaded intel: 5 recycling unit locations 16872 | -2/Research | Found Fusion Bomb Launcher 16943 | -2/Research | Found Prototype Device 16951 | -2/Research | Discovered new exit (range 11) 16953 | -2/Research | Identified exit to Access 16960 | -2/Research | Spotted B-90 Cyclops 16980 | -2/Research | Entered Quarantine 16994 | -2/Quarantine | Identified Exp. Actuator Array 17039 | -2/Quarantine | Found Alien Slashing Weapon 17039 | -2/Quarantine | Identified Sigix Broadsword 17103 | -2/Quarantine | Cryocooling Duct disabled 17118 | -2/Quarantine | Ambient heat levels rising (+20) 17118 | -2/Quarantine | Non-combat units ordered to evacuate 17140 | -2/Quarantine | Found Alien Energy Cannon 17243 | -2/Quarantine | Discovered exit to Access (range 15) 17256 | -2/Quarantine | Found Prototype Hackware 17282 | -2/Quarantine | Identified Exp. System Shield 17290 | -2/Quarantine | Spotted Fortress 17309 | -2/Quarantine | Discovered new exit (range 6) 17309 | -2/Quarantine | Discovered new exit (range 6) 17310 | -2/Quarantine | Identified exit to Protoforge 17312 | -2/Quarantine | Entered Protoforge 17316 | -2/Protoforge | Targeted by mysterious "MATRIX" hacker. 17484 | -2/Protoforge | Superfortress began startup sequence 17496 | -2/Protoforge | Spotted Hotshot 17523 | -2/Protoforge | Spotted B-90 Cyclops 17622 | -2/Protoforge | Spotted Hotshot 17644 | -2/Protoforge | Identified Core Cannon 17647 | -2/Protoforge | Additional patrols dispatched to research labs 17682 | -2/Protoforge | Spotted EXE-6 17682 | -2/Protoforge | Spotted EXE-6 17686 | -2/Protoforge | Spotted Decapitator 17686 | -2/Protoforge | Spotted Decapitator 17693 | -2/Protoforge | UFD initiated attack on Protoforge (Readiness: Maximal) 17693 | -2/Protoforge | Loaded intel: 3 recycling unit locations 17710 | -2/Protoforge | Found Prototype Processor 17710 | -2/Protoforge | Identified Exp. Armor Integrity Analyzer 17712 | -2/Protoforge | Found Prototype Ballistic Gun 17713 | -2/Protoforge | Found Prototype Ballistic Gun 17714 | -2/Protoforge | Scraphulk reinforcements arrived? 17716 | -2/Protoforge | Scraphulk reinforcements arrived? 17718 | -2/Protoforge | Found Prototype Ballistic Gun 17729 | -2/Protoforge | Optimus greeted in Protoforge 17743 | -2/Protoforge | Spotted EXE-6 17749 | -2/Protoforge | Spotted EXE-6 17785 | -2/Protoforge | Lost 4 allies 17808 | -2/Protoforge | Identified Cep. XC Strikerail (x3) 17808 | -2/Protoforge | Forge Plexus network access discovered 17818 | -2/Protoforge | Spotted AP7-3 17819 | -2/Protoforge | Spotted Overlord 17822 | -2/Protoforge | Spotted AP7-3 17858 | -2/Protoforge | Met 7R-MNS 17894 | -2/Protoforge | Lost 5 parts (1p2n2w) 17900 | -2/Protoforge | Spotted Striker 17910 | -2/Protoforge | Spotted Striker 17929 | -2/Protoforge | Found Prototype Processor 17929 | -2/Protoforge | Identified Exp. Target Analyzer 17931 | -2/Protoforge | Found Exp. Targeting Computer 17946 | -2/Protoforge | Lost 22 allies 17959 | -2/Protoforge | Found 0bPrime Scrap Suit 18003 | -2/Protoforge | Spotted Striker 18003 | -2/Protoforge | Spotted Executioner 18007 | -2/Protoforge | Spotted Hotshot 18007 | -2/Protoforge | Spotted Striker 18008 | -2/Protoforge | Spotted Striker 18008 | -2/Protoforge | Spotted Hotshot 18013 | -2/Protoforge | Found Scrap Suit 18021 | -2/Protoforge | Destroyed Hotshot 18037 | -2/Protoforge | Lost 14 allies 18066 | -2/Protoforge | Spotted Executioner 18067 | -2/Protoforge | Spotted Striker 18068 | -2/Protoforge | Spotted Striker 18069 | -2/Protoforge | Spotted Striker 18088 | -2/Protoforge | Allies destroyed Striker 18100 | -2/Protoforge | UFD reported confirmed Drillbomb installation 18128 | -2/Protoforge | Spotted Executioner 18128 | -2/Protoforge | Spotted Striker 18132 | -2/Protoforge | Lost 7 allies 18136 | -2/Protoforge | Spotted Hotshot 18143 | -2/Protoforge | UFD reported confirmed Drillbomb installation 18156 | -2/Protoforge | Spotted Hotshot 18167 | -2/Protoforge | Allies destroyed Hotshot 18188 | -2/Protoforge | Found Exp. Core Analyzer 18188 | -2/Protoforge | Spotted Executioner 18190 | -2/Protoforge | Spotted Striker 18194 | -2/Protoforge | Lost 5 allies 18202 | -2/Protoforge | Spotted Hotshot 18210 | -2/Protoforge | Spotted Executioner 18210 | -2/Protoforge | Spotted Executioner 18216 | -2/Protoforge | Spotted Hotshot 18254 | -2/Protoforge | Lost 7 allies 18263 | -2/Protoforge | Build established: Scavenger-Scrapper 18284 | -2/Protoforge | Destroyed Executioner 18291 | -2/Protoforge | Destroyed Hotshot 18353 | -2/Protoforge | Destroyed Hotshot 18368 | -2/Protoforge | Destroyed Executioner 18411 | -2/Protoforge | Spotted Executioner 18422 | -2/Protoforge | Spotted Executioner 18422 | -2/Protoforge | Spotted Executioner 18441 | -2/Protoforge | Destroyed Executioner 18443 | -2/Protoforge | Destroyed Executioner 18456 | -2/Protoforge | Spotted Executioner 18457 | -2/Protoforge | Destroyed Executioner 18457 | -2/Protoforge | Destroyed Executioner 18473 | -2/Protoforge | Destroyed B-90 Cyclops 18494 | -2/Protoforge | Spotted Striker 18494 | -2/Protoforge | Spotted Striker 18496 | -2/Protoforge | Spotted Executioner 18497 | -2/Protoforge | Spotted Striker 18497 | -2/Protoforge | Spotted Striker 18501 | -2/Protoforge | Destroyed 9 combat bots 18532 | -2/Protoforge | Destroyed Executioner 18581 | -2/Protoforge | Found Exp. Core Analyzer 18590 | -2/Protoforge | Spotted Executioner 18590 | -2/Protoforge | Spotted Striker 18590 | -2/Protoforge | Spotted Executioner 18593 | -2/Protoforge | Destroyed Striker 18600 | -2/Protoforge | Destroyed Executioner 18625 | -2/Protoforge | UFD reported confirmed Drillbomb installation 18651 | -2/Protoforge | Spotted Executioner 18652 | -2/Protoforge | Spotted Executioner 18653 | -2/Protoforge | Spotted Executioner 18654 | -2/Protoforge | Spotted Striker 18666 | -2/Protoforge | Destroyed Executioner 18673 | -2/Protoforge | Destroyed Executioner 18673 | -2/Protoforge | Destroyed Striker 18694 | -2/Protoforge | Spotted Executioner 18700 | -2/Protoforge | Spotted Executioner 18705 | -2/Protoforge | Destroyed 7 combat bots 18705 | -2/Protoforge | Destroyed Executioner 18711 | -2/Protoforge | Destroyed Executioner 18741 | -2/Protoforge | Destroyed 8 combat bots 18748 | -2/Protoforge | Core integrity fell below 50% 18748 | -2/Protoforge | Destroyed Executioner 18764 | -2/Protoforge | System corruption reached 10% 18780 | -2/Protoforge | Spotted Executioner 18781 | -2/Protoforge | Spotted Striker 18784 | -2/Protoforge | UFD reported confirmed Drillbomb installation 18807 | -2/Protoforge | Spotted Striker 18826 | -2/Protoforge | Spotted Executioner 18839 | -2/Protoforge | Lost 12 parts (2p1n6u3w) 18864 | -2/Protoforge | Spotted Striker 18867 | -2/Protoforge | Spotted Striker 18880 | -2/Protoforge | Destroyed Striker 18888 | -2/Protoforge | Spotted Striker 18892 | -2/Protoforge | Spotted Executioner 18947 | -2/Protoforge | Lost 5 parts (1p1u3w) 18956 | -2/Protoforge | Lost 11 allies 19024 | -2/Protoforge | UFD reported confirmed Drillbomb installation 19223 | -2/Protoforge | Lost 3 allies 19245 | -2/Protoforge | Found 0bPrime Scrap Suit 19274 | -2/Protoforge | Spotted Executioner 19274 | -2/Protoforge | Spotted Executioner 19407 | -2/Protoforge | Spotted Executioner 19408 | -2/Protoforge | Destroyed Executioner 19410 | -2/Protoforge | P-80 Master assimilated allied 02FAV-D 19414 | -2/Protoforge | Spotted Executioner 19456 | -2/Protoforge | Spotted Striker 19463 | -2/Protoforge | Destroyed Striker 19516 | -2/Protoforge | Found Exp. Core Analyzer 19652 | -2/Protoforge | Spotted Executioner 19653 | -2/Protoforge | Spotted Striker 19676 | -2/Protoforge | Spotted Striker 19725 | -2/Protoforge | Lost 4 allies 19761 | -2/Protoforge | UFD reported confirmed Drillbomb installation 19771 | -2/Protoforge | Spotted Striker 19772 | -2/Protoforge | Spotted Striker 19788 | -2/Protoforge | Core integrity fell below 20% 19896 | -2/Protoforge | Spotted Executioner 19897 | -2/Protoforge | Spotted Striker 19920 | -2/Protoforge | Destroyed Striker 19945 | -2/Protoforge | Lost 6 allies 19956 | -2/Protoforge | Destroyed 9 combat bots 19973 | -2/Protoforge | Spotted Executioner 19985 | -2/Protoforge | Spotted Executioner 19986 | -2/Protoforge | Destroyed Executioner 19990 | -2/Protoforge | Spotted Executioner 20035 | -2/Protoforge | Found 0bPrime Scrap Suit 20044 | -2/Protoforge | Lost 11 allies 20044 | -2/Protoforge | Found Exp. Targeting Computer 20049 | -2/Protoforge | Spotted Striker 20050 | -2/Protoforge | Spotted Striker 20054 | -2/Protoforge | Destroyed Striker 20078 | -2/Protoforge | Destroyed Striker 20092 | -2/Protoforge | Lost 3 allies 20170 | -2/Protoforge | Lost 3 allies 20237 | -2/Protoforge | Found 0bPrime Scrap Suit 20324 | -2/Protoforge | Spotted Striker 20325 | -2/Protoforge | Spotted Executioner 20329 | -2/Protoforge | Spotted Executioner 20330 | -2/Protoforge | Spotted Executioner 20331 | -2/Protoforge | Destroyed Striker 20339 | -2/Protoforge | Destroyed by Executioner with Helical Railgun Last Messages --------------- 20329_ Slug penetrates P-80 Master. 20329_ Slug penetrates Striker. 20329_ Slug penetrates Forge Plexus. 20330_ P-80 Master hacks 02FGQ-D, rebooting. 20330_ P-80 Master hacks 02FGR-D, rebooting. 20331_ Slug penetrates 02FGS-D. 20331_ Slug penetrates Executioner. 20331_ Striker destroyed. 20331_ P-80 Master destroyed. 20331_ Slug penetrates 02FGQ-D. 20331_ 02FGQ-D destroyed. 20334_ 02FGR-D system terminally corrupted. 20334_ Penetrated by Slug. 20334_ Mak. Coolant Network destroyed. 20335_ 02FGS-D cannibalizes Mak. Microdissipator Network to repair Mak. Coolant Network. 20335_ Slug penetrates 02FGS-D. 20335_ Slug penetrates P-80 Master. 20338_ 02FGS-D destroyed. 20339_ Penetrated by Slug. Map ----- +----------------------------------------------------+ | "" %%% %"%% % %% # | | " """""""""% % % !*==!!= " " + | | """"""""""""""" %%% % %]=[[ * ! " + | | """""""""""""""""%%%!=[%%!!%"[!= " # | | """""""""""""""""""%%%=%%*[=%"="!! "# | | """""""""""""""""""""%%%%%%%%!*%|=] "#" | | """"""""""""""""""""""%%%%*=%!]%!!!% " "#"" " | | """""""""""""""""""""""%%%[%/*%=*[%" "###"F ""# | | """"""""""""""""""""""""%%%%%!!!!%!=! "#?#"""""# | | """"""""""""""""""""""""%%=%[%/!!%!=* "#?#"""""# | | """"""""""""""""""""""""=E%[=%!%%!/%% #?####### | | """""""""""""""""""""""""%%*!%%%%!%*! "#???????? | | """""""""""""""""""""""""%% %%%=!!%%] "#???????? | | """""""""""""""""""""""""%%%%!!!*!=!!= "#???????? | | """""""""""""""""""""""""%% %%%%=%[!]!! #???????? | | """""""""""""""""""""""""% % %*%*%!!!|[ #???????? | | """"""""""""""""""""""""" % % %%!!! ##??????? | | """""""""""""""""""""""""% % % %%=!=" #??????? | | """"""""""""""""""""""""" "%% ""=![=" #??????? | | """""""""""""""""""""""""!%% %%[%!* ##??????? | | """"""""""""""""""""""""*%%% % *=/%* "#???????? | | """"""""""""""""""""""""%%"%= % =%=! #???????? | | """""""""""""""""""""""" %%"= % "*!*!= #???????? | | """""""""""""""""""""""% %%% % "%!!*% #???????? | | """"""""""""""""""""""SS"" % " %!!]!! #???????? | | """"""""""""""""""""" SS"@ "%[!% %[[ #???????? | | """"""""""""""""""" SSSS " " " [%**!! #???????? | | % """""""""""""""""SS SSSS%"% "|[![**=!#???????? | | %% """"""""""""""" SS % " "% ===%[ #???????? | | %% % """"""""" ss "% [|[=[#???????? | | %%% "" s" ""SS% !=%*!#???????? | | "&%""% % s "" %" SS% !!!! #???????? | | % " s % s=[%%[[ ###?????? | | %% % "" s % =*%*=| ""#?????? | | %%" %""% "&% %!! [! %"&#?????? | | " %%% ! ! % &&###???? | | " %"""" "&[ #???? | | " % % " " &&###???? | | % % % " "" "" &&#?????? | | "" " " "" ###?????? | | " " " " #???????? | | " " #???????? | | % """"" "" """ #???????? | | "" "" " """ #???????? | | """""""" " " " " """""""#???????? | | ############################+++###########???????? | | ???????????????????????#"" ""#?????????????? | | ?????????????????????###" "###???????????? | | ?????????????????????#"" ""#???????????? | | ?????????????????????#"" ""#???????????? | +----------------------------------------------------+ Best States ------------- Heat Dissipation 159 Coolant Potential 120 Energy Generation 65 Energy Capacity 1650 Matter Stores 300 Matter Capacity 300 Sight Range 23 Robot Scan Range 20 Terrain Scan Density 10 Jamming Range 14 Armor Coverage 825 Resistance: TH 10 Core Shielding 30 Propulsion Shielding 66 Utility Shielding 90 Weapon Shielding 90 Evasion (%) 77 Targeting Accuracy 12 Melee Accuracy 6 Target Analysis 10 Core Analysis 12 Armor Integrity Analysis 50 Recoil Reduction 3 Offensive Hacking 34 Defensive Hacking 20 Trap Extractor Capacity 8 Item Schematics ----------------- Exp. Sensor Array | -8/Materials | Scanalyzed Core Analyzer | -8/Recycling | Hacked Imp. Hacking Suite | -8/Recycling | Hacked Combat Drone Bay | -6/Data Miner | Free Lgt. Regenerative Plating | -6/Data Miner | Free Enh. Armored Leg | -6/Data Miner | Free Adv. EM Disruption Field | -6/Data Miner | Free Tesla Bomb Launcher | -6/Data Miner | Free Imp. Heavy Treads | -6/Data Miner | Free Imp. Point Defense System | -6/Data Miner | Free Hyp. Mass Driver | -6/Data Miner | Free Arm. Medium Treads | -6/Data Miner | Free Assault Drone Bay | -5/Zhirov | Free Exp. Heat Sink | -5/Zhirov | Free Exp. Optical Array | -5/Zhirov | Free Imp. Arc Thrower | -5/Zhirov | Free Enh. Coil Gun | -3/Testing | Archive Neutron Cannon | -3/Testing | Archive Robot Schematics ------------------ S-27 Virus | -6/Data Miner | Free M-22 Extractor | -6/Data Miner | Free G-50 Soldier | -6/Data Miner | Free H-66 Slayer | -6/Data Miner | Free H-77 Assassin | -6/Data Miner | Free A-27 Freighter | -3/Testing | Archive G-67 Veteran | -3/Testing | Archive B-60 Warrior | -3/Testing | Archive Fabricated ------------ Nothing Repaired ---------- Lgt. Treads | 53% | -9/Materials Exp. Sensor Array | 62% | -8/Materials | Broken Cld. Ion Engine | 26% | -8/Storage Imp. Light Armor Plating | 71% | -6/Factory Impulse Thruster Array | 12% | -5/Factory Imp. Cesium-ion Thruster | 40% | -4/Factory Impulse Thruster Array | 37% | -3/Testing Exp. Utility Shielding | 39% | -3/Testing Studied --------- Lgt. Treads | -9/Materials | Hacked Assault Cannon | -8/Materials | Hacked Lgt. Nuclear Core | -6/Factory | Hacked Imp. Grenade Launcher | -6/Factory | Hacked Lgt. Deuterium Engine | -5/Factory | Hacked Field Propulsion Array | -4/Factory | Hacked Impulse Thruster Array | -3/Research | Hacked Lgt. Fission Core | -3/Testing | Hacked Alien Tech Used ----------------- Integrated Reactor Sigix Broadsword Core Cannon Achievements -------------- None Challenges ------------ None Game ------ Seed LegKineticChaincannon Manual? 0 Play Time 04:21:09 Cumulative 2157.3 hours Start 2026.02.25 @ 19:14:54 End 2026.02.26 @ 01:01:43 Sessions 3 Manual Loads 0 Difficulty Rogue Special Mode None Game No. 1368 Rogue 1364 Adventurer 4 Explorer 0 Win Type - Total 302 Types 227/14/24/11/3/1/4/10/5/3 Lore% 98 Gallery% 96 Achievement% 89 Wizard Run 0 Options --------- Layout 2 ASCII 0 Keyboard 1 Movement Vi Keybinds 0 Fullscreen 0 Font 24/Terminus Map View 59x48 Zoom Use 0% Tactical HUD 1 Map Filters NONE Filters NONE Steam 1 RUN: 14b10dc4-9222-4df7-89e4-e064fc87c2d0